Cogmind - Beta 13 @@@ ROGUE MODE // 2024.04.10 @ 18:10:50 // Winter2019/RPGLIKE Player: Bulbasornado Result: Escaped! Performance ------------- Evolutions (9) 4500 Regions Visited (34) 6800 Robots Destroyed (900) 4500 Value Destroyed (38207) 38207 Prototype IDs (128) 2560 Alien Tech Used (2) 400 Bonus (26058) 26058 TOTAL SCORE: 83025 Bonus ------- Triggered High Security 1500 High Alert Combat Kills 17087 Follower Combat Kills 1198 Entered Garrisons 200 Used RIF Installer 500 Network Hubs Disabled 400 Aligned with FarCom 300 Met Data Miner 300 Met Zhirov 300 MAIN.C Attacked Warlord 500 Warlord Defense Kills 386 Built Enhanced Grunts 300 A7 Reached Mainframe 300 Met R17 at Cetus 500 Win 3000 Friendly Fire -713 Cogmind --------- Core Integrity 467/600 Matter 350/350 Energy 19/140 System Corruption 3% Temperature Warm (156) Movement Flying (7) Location To Epsilon Eridani Parts ------- > --- POWER (1) -------- Light Deuterium Engine > --- PROPULSION (6) --- Cooled VTOL Module Cooled VTOL Module Cooled VTOL Module Diametric Drive Diametric Drive Diametric Drive > --- UTILITY (8) ------ Improved Kinecellerator Weapon Cycler Powered Armor Advanced Hacking Suite Experimental Hacking Suite Experimental System Shield Experimental System Shield Improved System Restoration Module > --- WEAPON (5) ------- Enhanced Autogun Enhanced Autogun Enhanced Autogun Advanced KE Penetrator Advanced KE Penetrator > --- INVENTORY (1) ---- Advanced Reaction Control System Peak State ------------ > --- POWER ------------ Light Deuterium Engine > --- PROPULSION ------- Cooled VTOL Module Cooled VTOL Module Cooled VTOL Module Diametric Drive Diametric Drive Diametric Drive > --- UTILITY ---------- Spectral Analyzer Improved Kinecellerator Advanced Reaction Control System Powered Armor Advanced Hacking Suite Experimental Hacking Suite Experimental System Shield Experimental System Shield > --- WEAPON ----------- Enhanced Autogun Enhanced Autogun Enhanced Autogun Advanced KE Penetrator Advanced KE Penetrator > --- INVENTORY -------- Improved System Restoration Module [Rating: 126] Favorites ----------- Power Light Deuterium Engine Engine Light Deuterium Engine Reactor Fusion Reactor Propulsion Cooled VTOL Module Treads Light Treads Wheel Centrium Wheel Hover Unit Cooled Gravmag System Flight Unit Cooled VTOL Module Utility Improved Kinecellerator Device Improved Kinecellerator Storage Improved Matter Compressor Processor Improved Targeting Computer Hackware System Shield Protection Powered Armor Weapon Enhanced Autogun Energy Cannon Beam Cannon Ballistic Gun Enhanced Autogun Launcher Grenade Launcher Special Weapon Remote Datajack Slashing Weapon Mining Claw Build | -11 -10 -10 -9 -9 -9 -8 -8 -8 -8 -7 -7 -7 -7 -6 -6 -6 -6 -6 -6 -6 -6 -5 -5 -5 -5 -4 -4 -4 -4 -4 -3 -3 -2 -1 ------- Run | Yrd Mat Min Mat Min Exi Min Mat Gar Mat Fac Low Low Dat Pro Fac Was Fac Ext Cet Arc Hub Fac Upp Upp Zhi Pro Fac Upp Upp War Pro Res Res Acc Slots Evolved 16 | 3 3 1 3 . . . 3 . . . 1 . . . 1 . . . . . . . . . . . 1 . . . . . . . Power . | . . . . . . . . . . . . . . . . . . . . . . . . . . . . . . . . . . . Propulsion 5 | 1 1 1 . . . . 1 . . . . . . . 1 . . . . . . . . . . . . . . . . . . . Utility 7 | 1 1 . 3 . . . 1 . . . . . . . . . . . . . . . . . . . 1 . . . . . . . Weapon 4 | 1 1 . . . . . 1 . . . 1 . . . . . . . . . . . . . . . . . . . . . . . Parts Attached 161 | 7 9 5 23 . . . 21 2 7 10 3 3 . 2 17 4 2 4 9 3 2 2 . . 10 . 11 . 2 . . . 2 1 Power 7 | 1 . . 1 . . . . . 1 . . . . . . 2 . . . . . . . . 2 . . . . . . . . . Engine 5 | 1 . . 1 . . . . . 1 . . . . . . 1 . . . . . . . . 1 . . . . . . . . . Core . | . . . . . . . . . . . . . . . . . . . . . . . . . . . . . . . . . . . Reactor 2 | . . . . . . . . . . . . . . . . 1 . . . . . . . . 1 . . . . . . . . . Propulsion 33 | 2 3 2 4 . . . 4 . 2 1 . . . . 6 . 2 . . . . . . . 2 . 3 . 2 . . . . . Treads 2 | 2 . . . . . . . . . . . . . . . . . . . . . . . . . . . . . . . . . . Leg . | . . . . . . . . . . . . . . . . . . . . . . . . . . . . . . . . . . . Wheel 1 | . . . . . . . . . . . . . . . . . . . . . . . . . . . . . 1 . . . . . Hover 1 | . . . . . . . . . . . . . . . . . . . . . . . . . 1 . . . . . . . . . Flight 29 | . 3 2 4 . . . 4 . 2 1 . . . . 6 . 2 . . . . . . . 1 . 3 . 1 . . . . . Utility 83 | 2 2 . 11 . . . 15 1 2 7 2 1 . . 7 2 . 4 4 3 1 2 . . 6 . 8 . . . . . 2 1 Device 37 | 2 . . . . . . 7 1 . 2 2 1 . . 2 1 . 4 1 2 1 2 . . 3 . 4 . . . . . 1 1 Storage 2 | . . . . . . . . . . . . . . . . . . . . . . . . . 1 . 1 . . . . . . . Processor 10 | . 1 . 3 . . . 3 . . 1 . . . . . . . . 1 . . . . . . . . . . . . . 1 . Hackware 12 | . . . 2 . . . 1 . . 2 . . . . 2 . . . . 1 . . . . 1 . 3 . . . . . . . Protection 22 | . 1 . 6 . . . 4 . 2 2 . . . . 3 1 . . 2 . . . . . 1 . . . . . . . . . Artifact . | . . . . . . . . . . . . . . . . . . . . . . . . . . . . . . . . . . . Weapon 38 | 2 4 3 7 . . . 2 1 2 2 1 2 . 2 4 . . . 5 . 1 . . . . . . . . . . . . . Energy Gun . | . . . . . . . . . . . . . . . . . . . . . . . . . . . . . . . . . . . Energy Cannon 1 | . 1 . . . . . . . . . . . . . . . . . . . . . . . . . . . . . . . . . Ballistic Gun 34 | 2 2 2 7 . . . 2 1 2 1 1 2 . 2 4 . . . 5 . 1 . . . . . . . . . . . . . Ballistic Cannon . | . . . . . . . . . . . . . . . . . . . . . . . . . . . . . . . . . . . Launcher 1 | . . 1 . . . . . . . . . . . . . . . . . . . . . . . . . . . . . . . . Special Weapon 1 | . . . . . . . . . . 1 . . . . . . . . . . . . . . . . . . . . . . . . Impact Weapon . | . . . . . . . . . . . . . . . . . . . . . . . . . . . . . . . . . . . Slashing Weapon 1 | . 1 . . . . . . . . . . . . . . . . . . . . . . . . . . . . . . . . . Piercing Weapon . | . . . . . . . . . . . . . . . . . . . . . . . . . . . . . . . . . . . Special Melee Weapon . | . . . . . . . . . . . . . . . . . . . . . . . . . . . . . . . . . . . Unidentified Prototypes 12 | . . . 1 . . . 1 . . . . . . . 2 . . . 2 . . . . . 2 . 3 . . . . . 1 . Parts Lost . | . . . . . . . . . . . . . . . . . . . . . . . . . . . . . . . . . . . Power . | . . . . . . . . . . . . . . . . . . . . . . . . . . . . . . . . . . . Propulsion . | . . . . . . . . . . . . . . . . . . . . . . . . . . . . . . . . . . . Utility . | . . . . . . . . . . . . . . . . . . . . . . . . . . . . . . . . . . . Weapon . | . . . . . . . . . . . . . . . . . . . . . . . . . . . . . . . . . . . Highest Loss Streak . | . . . . . . . . . . . . . . . . . . . . . . . . . . . . . . . . . . . To Critical Strikes . | . . . . . . . . . . . . . . . . . . . . . . . . . . . . . . . . . . . Average Slot Usage (%) 99 | . 99 99 97 100 100 100 99 100 100 99 99 100 100 100 99 100 100 100 100 100 99 100 100 100 98 100 99 100 100 100 100 100 100 100 Engine 6 | . 12 9 5 7 7 7 5 5 5 5 5 5 5 5 5 5 5 5 5 5 5 5 5 5 4 5 5 5 5 5 5 5 5 5 Flight 29 | . 27 32 29 28 28 28 29 29 29 29 27 27 27 27 29 31 31 31 31 31 31 31 31 31 31 31 30 30 30 30 30 30 30 30 Device 12 | . 11 . . . . . 11 18 23 22 16 16 16 16 15 15 15 15 14 15 15 15 15 15 13 15 14 15 15 15 15 15 15 15 Processor 2 | . 6 9 5 7 7 7 5 5 5 . . . . . . . . . . . . . . . . . . . . . . . . . Hackware 11 | . . . 12 14 14 14 11 5 5 12 16 16 16 16 15 15 15 15 15 15 15 15 15 15 15 15 17 20 20 20 20 20 20 20 Protection 9 | . 14 19 21 21 21 21 13 9 5 4 5 5 5 5 4 5 5 5 5 5 5 5 5 5 5 5 5 5 5 5 5 5 5 5 Ballistic Gun 24 | . 24 18 22 21 21 21 19 23 23 22 25 27 27 27 26 26 26 26 26 26 25 26 26 26 26 26 25 25 25 25 25 25 25 25 Naked Turns . | . . . . . . . . . . . . . . . . . . . . . . . . . . . . . . . . . . . Heaviest Build 45 | 8 12 11 23 23 23 23 31 34 34 33 34 36 35 35 42 40 40 40 44 44 44 44 44 44 44 44 45 45 45 45 45 45 45 45 Greatest Support 57 | 8 17 21 23 23 23 23 35 35 35 35 35 35 35 35 40 40 40 45 45 45 45 45 45 45 45 45 51 51 51 57 51 57 57 57 Greatest Overweight (x) 2 | . . . . . . . . . . 2 . 1 . . 1 . . . . . . . . . 1 . . . . . . . . . Average Overweight (x) . | . . . . . . . . . . . . . . . . . . . . . . . . . . . . . . . . . . . Largest Inventory Capacity 1 | . . . . . . . . . . 1 1 1 1 1 1 1 1 1 1 1 1 1 1 1 1 1 1 1 1 1 1 1 1 1 Average Capacity . | . . . . . . . . . . . 1 1 1 1 1 1 1 1 1 1 1 1 1 1 1 1 1 1 1 1 1 1 1 1 Most Carried 1 | . . . . . . . . . . 1 1 1 1 1 1 1 1 1 1 1 1 1 1 1 1 1 1 1 1 1 1 1 1 1 Average Carried . | . . . . . . . . . . . 1 1 1 1 1 1 1 1 1 1 1 1 1 1 1 1 1 1 1 1 1 1 1 1 Final Capacity 1 | . . . . . . . . . . 1 1 1 1 1 1 1 1 1 1 1 1 1 1 1 1 1 1 1 1 1 1 1 1 1 Final Carried 1 | . . . . . . . . . . 1 1 1 1 1 1 1 1 1 1 1 1 1 1 1 1 1 1 1 1 1 1 1 1 1 Class Distribution -------------------- 51% | Wizard-Sprinter 30% | Hacker-Sprinter 10% | Mutant 5% | Scavenger-Mutant Dominant Class ---------------- Mutant | -10/Materials Mutant | -10/Mines Hacker-Sprinter | -9/Materials Hacker-Sprinter | -9/Mines Hacker-Sprinter | -9/Exiles Hacker-Sprinter | -8/Mines Hacker-Sprinter | -8/Materials Hacker-Sprinter | -8/Garrison Hacker-Sprinter | -8/Materials Wizard-Sprinter | -7/Factory Wizard-Sprinter | -7/Lower Caves Wizard-Sprinter | -7/Lower Caves Wizard-Sprinter | -7/Data Miner Wizard-Sprinter | -6/Proximity Caves Wizard-Sprinter | -6/Factory Wizard-Sprinter | -6/Waste Wizard-Sprinter | -6/Factory Wizard-Sprinter | -6/Extension Wizard-Sprinter | -6/Cetus Wizard-Sprinter | -6/Archives Wizard-Sprinter | -6/Hub_04(d) Wizard-Sprinter | -5/Factory Wizard-Sprinter | -5/Upper Caves Wizard-Sprinter | -5/Upper Caves Wizard-Sprinter | -5/Zhirov Wizard-Sprinter | -4/Proximity Caves Wizard-Sprinter | -4/Factory Wizard-Sprinter | -4/Upper Caves Wizard-Sprinter | -4/Upper Caves Wizard-Sprinter | -4/Warlord Wizard-Sprinter | -3/Proximity Caves Wizard-Sprinter | -3/Research Wizard-Sprinter | -2/Research Wizard-Sprinter | -1/Access Resources | -11 -10 -10 -9 -9 -9 -8 -8 -8 -8 -7 -7 -7 -7 -6 -6 -6 -6 -6 -6 -6 -6 -5 -5 -5 -5 -4 -4 -4 -4 -4 -3 -3 -2 -1 ----------- Run | Yrd Mat Min Mat Min Exi Min Mat Gar Mat Fac Low Low Dat Pro Fac Was Fac Ext Cet Arc Hub Fac Upp Upp Zhi Pro Fac Upp Upp War Pro Res Res Acc Matter Collected 28215 | 286 787 145 2652 444 . 228 3020 1088 1898 3281 618 690 . 660 2678 84 1192 1572 598 294 698 610 160 230 . 410 1214 544 280 . 740 69 959 86 Remotely 2743 | . . . . . . . 130 908 1586 119 . . . . . . . . . . . . . . . . . . . . . . . . Salvage Created 39715 | 44 764 86 2226 371 . 288 2932 1356 2665 5737 776 1233 . 919 4019 . 1906 2725 721 376 1312 1186 258 504 . 288 2582 862 682 . 1198 151 1475 73 Parts 2312 | 6 80 22 168 35 . 16 176 74 211 357 34 48 . 47 237 . 99 116 41 22 77 70 14 24 . 23 129 37 32 9 41 5 56 6 Haulers Intercepted 45 | . 2 . 4 . . . 6 . 2 6 . . . . 5 . 5 3 . . 2 2 . . . . 4 . . . . 1 3 . Recyclers Shooed 14 | . . . . . . . 1 . . . . . . . 2 . 1 2 . . . 2 . . . . 1 . . . 2 . 3 . Parts Field Recycled . | . . . . . . . . . . . . . . . . . . . . . . . . . . . . . . . . . . . Retrieved Matter . | . . . . . . . . . . . . . . . . . . . . . . . . . . . . . . . . . . . Parts Self-Destructed 301 | . . . . . . . . . . . 35 44 . 48 . . . . . . . . 14 24 . 23 . 33 26 . 54 . . . Prevented 8 | . . . . . . . . . . . . . . . . . . . . . . . . . . . . . . . 8 . . . Kills | -11 -10 -10 -9 -9 -9 -8 -8 -8 -8 -7 -7 -7 -7 -6 -6 -6 -6 -6 -6 -6 -6 -5 -5 -5 -5 -4 -4 -4 -4 -4 -3 -3 -2 -1 ------- Run | Yrd Mat Min Mat Min Exi Min Mat Gar Mat Fac Low Low Dat Pro Fac Was Fac Ext Cet Arc Hub Fac Upp Upp Zhi Pro Fac Upp Upp War Pro Res Res Acc Combat Hostiles Destroyed 749 | . 22 8 57 9 . 4 55 33 75 108 20 22 . 22 76 . 28 37 13 3 21 18 9 8 . 7 31 15 12 3 15 1 17 . Melee 1 | . . . . . . . . . . . . . . 1 . . . . . . . . . . . . . . . . . . . . Guns 740 | . 22 7 57 9 . 4 55 33 75 108 20 22 . 21 76 . 27 37 13 3 21 15 9 8 . 7 28 15 12 3 15 1 17 . AOE 8 | . . 1 . . . . . . . . . . . . . . 1 . . . . 3 . . . . 3 . . . . . . . Classes Destroyed 24 | 1 7 . 3 1 . 1 4 1 . 1 . 2 . 2 . . . . . . . . . . . . . . . 1 . . . . Worker 24 | . 3 . 3 1 . 2 . . . 1 . . . . 4 . 2 . . . 1 2 . . . . 4 . . . . . 1 . Builder 21 | . 2 . 1 1 . . . . 2 1 . . . . 2 . 3 2 . . . 3 . . . . 3 . . . . . 1 . Tunneler 12 | 2 . 2 1 1 . 1 . . 2 1 . . . . . . 1 . . . . . . . . . 1 . . . . . . . Hauler 45 | . 2 . 4 . . . 6 . 2 6 . . . . 5 . 5 3 . . 2 2 . . . . 4 . . . . 1 3 . Recycler 21 | . . . . 2 . 1 3 . . 1 . . . . . . . 5 . . . 2 . . . . 5 . . . 1 . 1 . Mechanic 10 | . . . . . . . 3 . . 6 . . . . 1 . . . . . . . . . . . . . . . . . . . Operator 25 | . 1 . 2 . . . 2 . 3 4 . . . . 4 . 1 . . 3 2 . . . . . 2 . . . . . . 1 Drone 4 | . . . . . . . . . . . . . . 2 . . . . . . . . . . . 2 . . . . . . . . Watcher 56 | . 3 . 5 . . . 5 . 5 7 . . . . 3 . 1 2 2 . 5 6 . . . . 5 . . . 2 1 3 1 Swarmer 130 | . 3 6 14 8 . . . 6 6 8 11 4 . 2 14 . 4 7 . . 4 8 4 . . . 10 1 2 . 4 . 4 . Cutter 9 | . . . . . . . 2 . . . . . . . 3 . . . . . 4 . . . . . . . . . . . . . Saboteur 2 | . . . . . . . . . . . . . . 1 1 . . . . . . . . . . . . . . . . . . . Grunt 347 | . 19 2 30 . . 3 39 12 41 52 4 12 . 8 38 . 14 17 5 . 2 6 2 5 . . 14 5 7 1 . . 9 . Brawler 34 | . . . 2 . . . 1 1 6 6 2 . . 3 2 . 1 2 . . . . 2 . . . . 2 1 . 3 . . . Duelist 24 | . . . . . . . 3 1 2 6 1 2 . 2 2 . 1 1 . . . . . . . . . 1 1 . 1 . . . Protector 14 | . . . 1 . . . 1 . 4 7 . . . . . . . . . . . . . . . . . . . . 1 . . . Sentry 100 | . . . 10 1 . . 8 7 13 14 2 1 . 2 8 . 2 6 . 3 6 2 1 . . 1 2 2 1 . 5 1 2 . Demolisher 2 | . . . . . . . . . . . . . . . . . . . . . . . . . . . . . . 2 . . . . Specialist 5 | . . . . . . . . . . 3 . . . . . . . . . . 2 . . . . . . . . . . . . . Hunter 47 | . . . . . . 1 . 5 2 7 . . . 2 4 . 6 2 . . 3 2 . 2 . 2 2 4 . . 1 . 2 . Programmer 12 | . . . . . . . . 1 . 4 . 1 . . 1 . . . . . . . . . . 2 3 . . . . . . . Heavy 5 | . . . . . . . 1 . 1 1 . . . . 2 . . . . . . . . . . . . . . . . . . . Behemoth 5 | . . . . . . . . . . . . 1 . . 1 . . 2 . . . . . 1 . . . . . . . . . . Cetus Guard 8 | . . . . . . . . . . . . . . . . . . . 8 . . . . . . . . . . . . . . . Wasp 1 | . . . . . . . . . . . . . . . . . 1 . . . . . . . . . . . . . . . . . Thug 1 | . . . . . . . . . . . . . . . . . . . . 1 . . . . . . . . . . . . . . Mutant 1 | . . . . . . . . . . . . 1 . . . . . . . . . . . . . . . . . . . . . . Best Kill Streak 56 | 1 4 6 12 5 . 3 18 7 56 25 9 7 . 12 23 . 28 16 6 6 17 20 9 7 . 4 18 23 12 3 18 2 20 1 Combat Bots Only 53 | . 3 4 8 4 . 3 12 7 53 24 9 7 . 12 16 . 9 11 5 3 11 10 9 7 . 4 9 8 12 3 10 1 8 . Max Kills in Single Turn 10 | 1 1 3 2 2 . 1 2 1 3 3 2 3 . 1 3 . 5 2 2 1 3 3 3 2 . 1 10 2 2 1 1 1 3 1 Gunslinging 2 | . . . 1 1 . . 1 . 2 2 1 2 . . 1 . 1 1 1 . 2 1 1 1 . . 1 1 1 . . . 1 . Exploded 3 | . . 1 . . . . . . . . . . . . . . 1 . . . . 3 . . . . 3 . . . . . . . Melee 1 | . . . . . . . . . . . . . . 1 . . . . . . . . . . . . . . . . . . . . Uniques/NPCs Destroyed . | . . . . . . . . . . . . . . . . . . . . . . . . . . . . . . . . . . . Combat | -11 -10 -10 -9 -9 -9 -8 -8 -8 -8 -7 -7 -7 -7 -6 -6 -6 -6 -6 -6 -6 -6 -5 -5 -5 -5 -4 -4 -4 -4 -4 -3 -3 -2 -1 -------- Run | Yrd Mat Min Mat Min Exi Min Mat Gar Mat Fac Low Low Dat Pro Fac Was Fac Ext Cet Arc Hub Fac Upp Upp Zhi Pro Fac Upp Upp War Pro Res Res Acc Hostile Shots Fired 1841 | . 104 37 121 17 . 7 188 114 138 352 37 26 . 41 127 . 49 124 34 5 34 23 4 29 . 12 60 25 16 13 18 7 67 12 Missed 879 | . 41 8 53 7 . 2 105 47 58 161 15 5 . 11 77 . 24 68 14 3 19 17 2 15 . 7 38 13 11 4 10 6 35 3 Damage Taken 13951 | . 753 317 739 96 . 55 1108 859 1011 2496 255 278 . 380 793 . 448 742 295 49 552 204 34 280 . 108 457 206 86 276 205 24 656 189 Core 9628 | . 597 223 443 66 . 47 718 605 752 1809 181 202 . 251 562 . 316 497 191 27 429 117 13 145 . 68 299 122 55 199 151 24 386 133 Absorbed by Shields 2082 | . . . . . . . 315 148 324 710 91 93 . 131 101 . . . 169 . . . . . . . . . . . . . . . Redirected to Core 8148 | . 373 204 388 66 . 30 537 514 671 1509 181 163 . 197 455 . 270 437 191 27 429 78 13 128 . 68 214 122 55 179 151 . 365 133 Ignored by Resistances 664 | . . . . . . . 7 22 63 157 13 33 . 26 59 . 26 39 26 3 1 15 4 18 . 3 26 8 3 13 3 . 82 14 Regen/Repaired (Parts) 15 | . . . . . . . . . . . . . . . 15 . . . . . . . . . . . . . . . . . . . Core Remaining (%) 94 | 100 . 100 . . . 97 . . 100 . . . . 100 . . . . . . 67 . . . . 100 . . . . 100 100 100 77 Volleys Fired 1858 | 4 213 24 232 37 . 19 218 84 120 218 24 33 . 32 132 . 58 82 24 14 35 29 8 13 . 13 59 27 13 6 31 8 43 5 Largest 5 | 2 2 2 3 3 . 3 4 4 4 4 5 5 . 5 5 . 5 5 5 5 5 5 5 5 . 5 5 5 5 5 5 5 5 5 Hottest 145 | 40 80 40 69 69 . 69 96 101 103 103 126 136 . 131 131 . 131 131 145 145 145 145 145 145 . 145 145 145 145 145 145 145 145 145 Shots Fired 6847 | 8 352 46 668 111 . 57 690 267 457 831 111 165 . 160 638 . 290 393 117 66 172 145 40 65 . 65 277 135 65 30 155 37 215 19 Gun 6795 | 8 303 44 668 111 . 57 690 267 457 830 111 165 . 160 638 . 290 393 117 66 172 145 40 65 . 65 277 135 65 30 155 37 215 19 Cannon 49 | . 49 . . . . . . . . . . . . . . . . . . . . . . . . . . . . . . . . . Launcher 2 | . . 2 . . . . . . . . . . . . . . . . . . . . . . . . . . . . . . . . Special 1 | . . . . . . . . . . 1 . . . . . . . . . . . . . . . . . . . . . . . . Kinetic 6795 | 8 303 44 668 111 . 57 690 267 457 830 111 165 . 160 638 . 290 393 117 66 172 145 40 65 . 65 277 135 65 30 155 37 215 19 Thermal 49 | . 49 . . . . . . . . . . . . . . . . . . . . . . . . . . . . . . . . . Explosive 2 | . . 2 . . . . . . . . . . . . . . . . . . . . . . . . . . . . . . . . Electromagnetic . | . . . . . . . . . . . . . . . . . . . . . . . . . . . . . . . . . . . Robot Hit Streak 89 | 4 21 19 45 22 . 25 48 26 89 83 40 40 . 23 43 . 46 39 40 39 44 47 25 32 . 17 47 47 38 66 53 16 30 22 Robot Miss Streak 8 | 1 3 2 8 2 . 1 3 2 2 3 2 2 . 4 3 . 3 3 2 1 1 2 1 1 . 1 2 2 2 . 1 1 2 1 Penetration Max 1 | . . . . . . . . . 1 1 1 . . 1 1 . 1 1 1 1 1 1 1 . . 1 1 1 1 1 . . 1 1 Secondary Targets 213 | . 4 2 11 2 . . 14 12 22 37 7 7 . 8 25 . 9 7 5 1 5 2 3 5 . . 7 2 7 1 . . 8 . Max Gunslinging Chain 2 | . 1 1 1 1 . . 1 1 2 2 1 2 . 1 2 . 1 1 1 1 2 1 1 2 . . 2 1 1 1 . . 1 . Shots Hit Robots 4574 | 5 130 34 234 39 . 29 460 194 354 671 89 111 . 112 452 . 221 261 74 51 118 97 28 55 . 49 200 113 52 28 110 24 171 8 Core Hits 1829 | 3 53 15 101 15 . 15 172 65 150 265 29 40 . 44 178 . 79 102 43 17 51 56 14 19 . 15 103 37 22 9 42 7 64 4 Critical Kills 50 | . 1 1 1 . . . 1 1 1 3 1 . . . 5 . 1 . 2 . 1 4 . 2 . 2 7 3 2 1 3 . 7 . Critical Parts Destroyed 76 | . 1 . . . . . 4 3 2 4 1 1 . 3 5 . 2 3 1 6 3 7 . 3 . 4 8 6 2 2 1 . 4 . Critical Strikes 136 | . 2 1 1 . . . 5 5 3 7 2 1 . 3 10 . 3 3 4 6 5 12 . 6 . 6 15 10 5 3 4 . 14 . Destroy 136 | . 2 1 1 . . . 5 5 3 7 2 1 . 3 10 . 3 3 4 6 5 12 . 6 . 6 15 10 5 3 4 . 14 . Melee Attacks 19 | . 13 6 . . . . . . . . . . . . . . . . . . . . . . . . . . . . . . . . Impact . | . . . . . . . . . . . . . . . . . . . . . . . . . . . . . . . . . . . Slashing 19 | . 13 6 . . . . . . . . . . . . . . . . . . . . . . . . . . . . . . . . Piercing . | . . . . . . . . . . . . . . . . . . . . . . . . . . . . . . . . . . . Sneak Attacks 2 | . 2 . . . . . . . . . . . . . . . . . . . . . . . . . . . . . . . . . Combat Hostiles . | . . . . . . . . . . . . . . . . . . . . . . . . . . . . . . . . . . . Follow-up Attacks . | . . . . . . . . . . . . . . . . . . . . . . . . . . . . . . . . . . . Damage Inflicted 115256 | 72 1491 524 3796 644 . 423 7194 3513 8767 16917 2187 2684 . 2566 12089 . 5904 6904 2856 1521 3707 4036 880 1550 . 1544 7991 3006 1820 1004 3342 634 5356 334 Guns 111420 | 72 1358 386 3760 644 . 423 7194 3513 8767 16724 2187 2684 . 2566 12089 . 5586 6904 2856 1521 3466 3187 880 1550 . 1544 6237 3006 1820 1004 3168 634 5356 334 Cannons 35 | . 35 . . . . . . . . . . . . . . . . . . . . . . . . . . . . . . . . . Explosions 3703 | . . 138 36 . . . . . . 193 . . . . . . 318 . . . 241 849 . . . . 1754 . . . 174 . . . Melee 98 | . 98 . . . . . . . . . . . . . . . . . . . . . . . . . . . . . . . . . Ramming . | . . . . . . . . . . . . . . . . . . . . . . . . . . . . . . . . . . . Kinetic 111420 | 72 1358 386 3760 644 . 423 7194 3513 8767 16724 2187 2684 . 2566 12089 . 5586 6904 2856 1521 3466 3187 880 1550 . 1544 6237 3006 1820 1004 3168 634 5356 334 Thermal 1997 | . 35 . . . . . . . . 135 . . . . . . 318 . . . . 469 . . . . 866 . . . 174 . . . Explosive 1120 | . . 138 36 . . . . . . 58 . . . . . . . . . . . . . . . . 888 . . . . . . . Electromagnetic 621 | . . . . . . . . . . . . . . . . . . . . . 241 380 . . . . . . . . . . . . Impact . | . . . . . . . . . . . . . . . . . . . . . . . . . . . . . . . . . . . Slashing 98 | . 98 . . . . . . . . . . . . . . . . . . . . . . . . . . . . . . . . . Piercing . | . . . . . . . . . . . . . . . . . . . . . . . . . . . . . . . . . . . Highest Corruption 8 | . . . . . . . . . . . . . . . . . 1 2 . . 8 . . . . . . . . . . . . 3 Average Corruption 1 | . . . . . . . . . . . . . . . . . 1 1 . . 7 . . . . . . . . . . . . 2 Corruption Purged 3 | . . . . . . . . . . . . . . . . . . 2 . . 1 . . . . . . . . . . . . . Corruption Blocked . | . . . . . . . . . . . . . . . . . . . . . . . . . . . . . . . . . . . Effects 5 | . . . . . . . . . . . . . . . . . 2 2 . . 1 . . . . . . . . . . . . . Message Errors 1 | . . . . . . . . . . . . . . . . . . . . . 1 . . . . . . . . . . . . . Matter Fused 2 | . . . . . . . . . . . . . . . . . 2 . . . . . . . . . . . . . . . . . Data Loss (major) 1 | . . . . . . . . . . . . . . . . . . 1 . . . . . . . . . . . . . . . . Weapon Failures 1 | . . . . . . . . . . . . . . . . . . 1 . . . . . . . . . . . . . . . . Overload Shots . | . . . . . . . . . . . . . . . . . . . . . . . . . . . . . . . . . . . Overflow Damage 372 | . 28 . . . . . . . . 70 . . . . . . 73 . . . . . . . . . 201 . . . . . . . Projectiles . | . . . . . . . . . . . . . . . . . . . . . . . . . . . . . . . . . . . Explosions 344 | . . . . . . . . . . 70 . . . . . . 73 . . . . . . . . . 201 . . . . . . . Melee 28 | . 28 . . . . . . . . . . . . . . . . . . . . . . . . . . . . . . . . . Knockbacks . | . . . . . . . . . . . . . . . . . . . . . . . . . . . . . . . . . . . Impact . | . . . . . . . . . . . . . . . . . . . . . . . . . . . . . . . . . . . Kinetic . | . . . . . . . . . . . . . . . . . . . . . . . . . . . . . . . . . . . Secondary . | . . . . . . . . . . . . . . . . . . . . . . . . . . . . . . . . . . . Self-Inflicted Damage 908 | . . . . . . . . . . 586 . . . . . . . . . . 187 77 . . . . 58 . . . . . . . Shots 11 | . . . . . . . . . . 7 . . . . . . . . . . 2 1 . . . . 1 . . . . . . . Rammed . | . . . . . . . . . . . . . . . . . . . . . . . . . . . . . . . . . . . Targets Rammed . | . . . . . . . . . . . . . . . . . . . . . . . . . . . . . . . . . . . Kicked . | . . . . . . . . . . . . . . . . . . . . . . . . . . . . . . . . . . . Crushed . | . . . . . . . . . . . . . . . . . . . . . . . . . . . . . . . . . . . Highest Temperature 414 | . 414 90 245 22 . 7 97 94 231 97 170 268 . 239 172 . 68 40 97 48 66 42 54 48 . 4 13 13 13 29 13 83 171 72 Average Temperature 42 | . 61 20 80 5 . 3 27 30 60 20 52 79 . 80 39 . 15 15 35 24 27 20 27 22 . 4 5 5 5 29 6 43 39 45 Received Heat Transfer 3566 | . 381 114 297 36 . 18 491 132 387 646 30 90 . 60 198 . 108 150 59 9 6 27 36 60 . 9 63 . . 33 9 . 117 . Effects 2 | . 2 . . . . . . . . . . . . . . . . . . . . . . . . . . . . . . . . . Shutdowns 1 | . 1 . . . . . . . . . . . . . . . . . . . . . . . . . . . . . . . . . Damage (minor) 1 | . 1 . . . . . . . . . . . . . . . . . . . . . . . . . . . . . . . . . Siege Activations . | . . . . . . . . . . . . . . . . . . . . . . . . . . . . . . . . . . . Robots Corrupted . | . . . . . . . . . . . . . . . . . . . . . . . . . . . . . . . . . . . Combat Hostiles . | . . . . . . . . . . . . . . . . . . . . . . . . . . . . . . . . . . . Parts Fried . | . . . . . . . . . . . . . . . . . . . . . . . . . . . . . . . . . . . Impact Corruptions . | . . . . . . . . . . . . . . . . . . . . . . . . . . . . . . . . . . . Robots Melted . | . . . . . . . . . . . . . . . . . . . . . . . . . . . . . . . . . . . Combat Hostiles . | . . . . . . . . . . . . . . . . . . . . . . . . . . . . . . . . . . . Parts Melted 1 | . . . . . . . . . . . . . . . . . . . . . . . . . . . 1 . . . . . . . Heat Transferred 1664 | . 74 . . . . . . . . 100 . . . . . . 250 . . . . 300 . . . . 700 . . . 240 . . . Parts Sabotaged 2 | . . . . . . . . . . . . . . 2 . . . . . . . . . . . . . . . . . . . . Parts Stolen . | . . . . . . . . . . . . . . . . . . . . . . . . . . . . . . . . . . . Parts Stripped . | . . . . . . . . . . . . . . . . . . . . . . . . . . . . . . . . . . . Power Chain Reactions . | . . . . . . . . . . . . . . . . . . . . . . . . . . . . . . . . . . . Alert | -11 -10 -10 -9 -9 -9 -8 -8 -8 -8 -7 -7 -7 -7 -6 -6 -6 -6 -6 -6 -6 -6 -5 -5 -5 -5 -4 -4 -4 -4 -4 -3 -3 -2 -1 ------- Run | Yrd Mat Min Mat Min Exi Min Mat Gar Mat Fac Low Low Dat Pro Fac Was Fac Ext Cet Arc Hub Fac Upp Upp Zhi Pro Fac Upp Upp War Pro Res Res Acc Peak Influence 3791 | 10 856 669 2115 1081 . 210 1614 2166 3107 3791 . . . . 1651 577 2038 1807 1745 992 1075 826 . . . . 1319 . . . . 349 663 311 Initial 1413 | . 6 333 260 794 . . 81 1049 1055 1413 . . . . 310 577 403 650 1100 698 117 526 . . . . 88 . . . . 202 195 290 Average 947 | 4 204 503 1414 1002 . 126 893 1696 1828 2085 . . . . 639 577 982 1244 1407 624 619 611 . . . . 512 . . . . 281 326 195 Maximum Alert Level 5 | . 3 2 5 3 . 1 5 5 5 5 . . . . 5 2 5 5 5 3 3 3 . . . . 4 . . . . 1 2 1 Low Security (%) 14 | 100 65 . . . . 77 4 . . . . . . . 6 . . . . . 10 . . . . . 21 . . . . . 20 59 Level 1 11 | . 15 24 5 . . 22 11 . . . . . . . 26 . . . . 17 8 7 . . . . 27 . . . . 100 48 40 Level 2 21 | . 13 75 11 . . . 18 . . . . . . . 34 100 27 8 . 49 43 67 . . . . 24 . . . . . 30 . Level 3 17 | . 4 . 19 100 . . 26 2 18 . . . . . 18 . 45 30 . 32 37 24 . . . . 14 . . . . . . . Level 4 15 | . . . 21 . . . 36 40 25 27 . . . . 12 . 20 43 81 . . . . . . . 13 . . . . . . . Level 5 12 | . . . 42 . . . 1 57 5 32 . . . . 1 . 6 . 18 . . . . . . . . . . . . . . . High Security 6 | . . . . . . . . . 50 39 . . . . . . . 17 . . . . . . . . . . . . . . . . Max Security . | . . . . . . . . . . . . . . . . . . . . . . . . . . . . . . . . . . . Sterilizations 3 | . . . 1 . . . 1 . 1 . . . . . . . . . . . . . . . . . . . . . . . . . Squads Dispatched 129 | . 8 . 11 . . . 11 . 10 34 . . . 1 19 . 11 3 . . 6 4 . . . . 7 . . . 1 1 1 1 Investigation 40 | . 7 . 9 . . . 5 . 1 1 . . . . 8 . 5 2 . . . . . . . . 2 . . . . . . . Extermination 5 | . . . . . . . . . . 3 . . . . 1 . . . . . . . . . . . 1 . . . . . . . Reinforcement 30 | . 1 . . . . . 2 . 1 2 . . . . 5 . 3 . . . 6 3 . . . . 4 . . . 1 . 1 1 Assault 44 | . . . 2 . . . 3 . 8 23 . . . 1 3 . 2 1 . . . . . . . . . . . . . 1 . . Garrison 10 | . . . . . . . 1 . . 5 . . . . 2 . 1 . . . . 1 . . . . . . . . . . . . Intercept . | . . . . . . . . . . . . . . . . . . . . . . . . . . . . . . . . . . . Searches Triggered . | . . . . . . . . . . . . . . . . . . . . . . . . . . . . . . . . . . . Construction Impeded 5 | . . . . . . . . . . . . . . . . . 1 . . . 1 1 . . . . 1 . . . 1 . . . Haulers Reinforced 8 | . . . . . . . . . . . . . . . 1 . 2 . . . . 2 . . . . 2 . . . . . . 1 Active Scanning Responses . | . . . . . . . . . . . . . . . . . . . . . . . . . . . . . . . . . . . Cargo Convoy Interrupts . | . . . . . . . . . . . . . . . . . . . . . . . . . . . . . . . . . . . Stealth | -11 -10 -10 -9 -9 -9 -8 -8 -8 -8 -7 -7 -7 -7 -6 -6 -6 -6 -6 -6 -6 -6 -5 -5 -5 -5 -4 -4 -4 -4 -4 -3 -3 -2 -1 --------- Run | Yrd Mat Min Mat Min Exi Min Mat Gar Mat Fac Low Low Dat Pro Fac Was Fac Ext Cet Arc Hub Fac Upp Upp Zhi Pro Fac Upp Upp War Pro Res Res Acc Distress Signals 25 | . 1 . 3 . . . 2 . 3 2 . . . . 1 . 1 1 1 . 3 3 . . . . 1 . . . 1 . 2 . Communications Jammed . | . . . . . . . . . . . . . . . . . . . . . . . . . . . . . . . . . . . Distress Signals . | . . . . . . . . . . . . . . . . . . . . . . . . . . . . . . . . . . . Times Spotted 913 | . 31 7 61 8 . 4 71 31 88 163 16 23 . 24 78 . 36 39 16 8 30 21 4 8 . 4 32 15 9 33 15 3 26 9 Peak Tracking Total 22 | . 5 3 9 4 . 3 6 4 13 22 4 6 . 9 6 . 9 8 5 2 7 5 4 5 . 1 8 5 4 17 5 2 13 8 Tactical Retreats 28 | . . 1 1 . . . 1 1 3 6 . . . 1 3 . 1 . . . 1 1 . . . . 2 . . 3 . . 3 . Traps | -11 -10 -10 -9 -9 -9 -8 -8 -8 -8 -7 -7 -7 -7 -6 -6 -6 -6 -6 -6 -6 -6 -5 -5 -5 -5 -4 -4 -4 -4 -4 -3 -3 -2 -1 ------- Run | Yrd Mat Min Mat Min Exi Min Mat Gar Mat Fac Low Low Dat Pro Fac Was Fac Ext Cet Arc Hub Fac Upp Upp Zhi Pro Fac Upp Upp War Pro Res Res Acc Traps Triggered 13 | . . . . . . . . 5 . 2 . . . . 1 . 3 1 . . 1 . . . . . . . . . . . . . Indirectly 1 | . . . . . . . . . . . . . . . . . . . . . 1 . . . . . . . . . . . . . Trap Hack Attempts . | . . . . . . . . . . . . . . . . . . . . . . . . . . . . . . . . . . . Triggered . | . . . . . . . . . . . . . . . . . . . . . . . . . . . . . . . . . . . Disarmed . | . . . . . . . . . . . . . . . . . . . . . . . . . . . . . . . . . . . Reprogrammed . | . . . . . . . . . . . . . . . . . . . . . . . . . . . . . . . . . . . Reused . | . . . . . . . . . . . . . . . . . . . . . . . . . . . . . . . . . . . Traps Extracted . | . . . . . . . . . . . . . . . . . . . . . . . . . . . . . . . . . . . Installed . | . . . . . . . . . . . . . . . . . . . . . . . . . . . . . . . . . . . Triggered 5 | . . . . . . . . . . . 1 . . . . . . . . . . . . . . . . . . 3 1 . . . Machines | -11 -10 -10 -9 -9 -9 -8 -8 -8 -8 -7 -7 -7 -7 -6 -6 -6 -6 -6 -6 -6 -6 -5 -5 -5 -5 -4 -4 -4 -4 -4 -3 -3 -2 -1 ---------- Run | Yrd Mat Min Mat Min Exi Min Mat Gar Mat Fac Low Low Dat Pro Fac Was Fac Ext Cet Arc Hub Fac Upp Upp Zhi Pro Fac Upp Upp War Pro Res Res Acc Machines Disabled 239 | . 31 7 38 2 . 5 30 6 12 26 . . . . 12 . 10 1 . 3 17 9 . . . . 24 1 . . 1 1 3 . Max in Single Turn 9 | . 3 1 2 2 . 1 2 1 2 6 . . . . 5 . 8 1 . 1 9 3 . . . . 9 1 . . 1 1 1 . Garrison Access 14 | . . . . . . . . . . 3 . . . . 4 . 2 . . . 1 2 . . . . . . . . . 1 . 1 Garrison Relay 5 | . . . . . . . . 5 . . . . . . . . . . . . . . . . . . . . . . . . . . Network Hub 2 | . . . . . . . . . . . . . . . . . . . . . 2 . . . . . . . . . . . . . Machines Repaired . | . . . . . . . . . . . . . . . . . . . . . . . . . . . . . . . . . . . Machines Dismantled . | . . . . . . . . . . . . . . . . . . . . . . . . . . . . . . . . . . . Machines Sabotaged . | . . . . . . . . . . . . . . . . . . . . . . . . . . . . . . . . . . . Overloaded Fab Kills . | . . . . . . . . . . . . . . . . . . . . . . . . . . . . . . . . . . . Hacking | -11 -10 -10 -9 -9 -9 -8 -8 -8 -8 -7 -7 -7 -7 -6 -6 -6 -6 -6 -6 -6 -6 -5 -5 -5 -5 -4 -4 -4 -4 -4 -3 -3 -2 -1 --------- Run | Yrd Mat Min Mat Min Exi Min Mat Gar Mat Fac Low Low Dat Pro Fac Was Fac Ext Cet Arc Hub Fac Upp Upp Zhi Pro Fac Upp Upp War Pro Res Res Acc Machines Accessed 180 | . 10 . 16 . 2 . 12 4 9 27 1 . 4 . 32 . 11 4 2 1 8 5 . . 9 . 11 . . . 2 3 2 5 Terminals 109 | . 7 . 12 . . . 7 4 8 17 . . . . 15 . 6 4 2 . 7 2 . . . . 8 . . . 1 3 2 4 Fabricators 13 | . . . . . . . . . . 2 . . . . 6 . 3 . . . . . . . . . 2 . . . . . . . Repair Stations 2 | . 1 . . . . . . . . . . . . . 1 . . . . . . . . . . . . . . . . . . . Recycling Units 19 | . 2 . 2 . . . 2 . 1 4 . . . . 5 . . . . . . 1 . . . . 1 . . . 1 . . . Scanalyzers 6 | . . . 2 . . . 2 . . 1 . . . . 1 . . . . . . . . . . . . . . . . . . . Garrison Access 14 | . . . . . . . 1 . . 3 . . . . 4 . 2 . . . 1 2 . . . . . . . . . . . 1 Total Hacks 1032 | . 48 . 91 . 2 . 55 6 41 151 1 . 29 . 149 . 58 18 9 25 60 40 . . 48 . 126 . . . 2 14 20 39 Successful 688 | . 27 . 74 . 2 . 43 4 21 87 1 . 29 . 110 . 35 7 5 25 37 19 . . 48 . 62 . . . 2 11 16 23 Failed 335 | . 20 . 14 . . . 11 2 20 63 . . . . 38 . 23 11 4 . 23 20 . . . . 64 . . . . 3 3 16 Catastrophic 55 | . 3 . . . . . . 1 4 12 . . . . 5 . 3 1 . . 2 4 . . . . 15 . . . . 1 . 4 Database Lockouts 9 | . 1 . 3 . . . 1 . . 1 . . . . 1 . . . . . . 1 . . . . . . . . . . 1 . Manual 474 | . 29 . 45 . 2 . 33 1 31 80 . . . . 60 . 25 3 2 . 31 24 . . . . 67 . . . . 7 7 27 Terminals 819 | . 39 . 82 . . . 40 6 39 132 . . . . 117 . 51 18 9 . 59 33 . . . . 121 . . . 1 14 20 38 Fabricators 27 | . . . . . . . . . . 2 . . . . 16 . 5 . . . . . . . . . 4 . . . . . . . Repair Stations 7 | . 5 . . . . . . . . . . . . . 2 . . . . . . . . . . . . . . . . . . . Recycling Units 41 | . 4 . 6 . . . 8 . 2 6 . . . . 8 . . . . . . 5 . . . . 1 . . . 1 . . . Scanalyzers 7 | . . . 3 . . . 2 . . 1 . . . . 1 . . . . . . . . . . . . . . . . . . . Garrison Access 26 | . . . . . . . 5 . . 10 . . . . 5 . 2 . . . 1 2 . . . . . . . . . . . 1 Terminal Hacks 504 | . 14 . 43 . 2 . 18 4 18 63 1 . 29 . 64 . 24 7 5 25 30 14 . . 48 . 51 . . . 1 9 14 20 Record 147 | . . . 14 . 1 . 4 . . 9 . . 11 . 18 . 4 . 4 25 3 . . . 36 . 10 . . . . 4 2 2 Part Schematic 35 | . . . . . . . . . 1 6 . . 10 . 3 . 2 . . . 4 . . . 4 . 5 . . . . . . . Robot Schematic 9 | . . . . . . . . . . . . . 5 . 3 . . . . . 1 . . . . . . . . . . . . . Robot Analysis 64 | . 7 . 3 . . . 3 . 6 8 . . . . 10 . . 1 . . . 6 . . 4 . 8 . . . . . 1 7 Prototype ID Bank 54 | . 4 . 4 . . . 2 . 4 7 . . 3 . 8 . 2 1 . . 4 1 . . 4 . 5 . . . . . 2 3 Open Door 6 | . . . . . . . . 1 . . 1 . . . . . . 1 1 . . . . . . . . . . . 1 . . 1 Open DSF 2 | . . . . . . . . . . 1 . . . . . . . . . . . . . . . . . . . . . 1 . . Level Access Points 6 | . . . . . . . . . . . . . . . 1 . . . . . 1 . . . . . 1 . . . . 1 1 1 Branch Access Points 13 | . 1 . 1 . . . . . 1 1 . . . . 1 . 1 1 . . 1 1 . . . . 1 . . . . 1 1 1 Emergency Access Points 18 | . . . . . . . . 1 . 2 . . . . 3 . 2 . . . 5 1 . . . . 3 . . . . . 1 . Machine Index 1 | . . . . . . . . . . . . . . . . . . . . . . . . . . . . . . . . . . 1 Terminal Index 6 | . . . . . . . . . . 2 . . . . . . . . . . 1 . . . . . 1 . . . . . 1 1 Fabricator Index 2 | . . . . . . . . . . 1 . . . . . . 1 . . . . . . . . . . . . . . . . . Repair Station Index 3 | . . . . . . . 1 . . . . . . . . . . . . . 1 . . . . . 1 . . . . . . . Recycling Unit Index 1 | . . . . . . . . . . . . . . . . . . . . . . . . . . . 1 . . . . . . . Scanalyzer Index 2 | . . . 1 . . . . . . . . . . . . . . . . . . . . . . . 1 . . . . . . . Garrison Index 4 | . . . . . . . . . . 2 . . . . . . . . . . 1 . . . . . 1 . . . . . . . Alert Level 4 | . . . 1 . . . 2 . . 1 . . . . . . . . . . . . . . . . . . . . . . . . Unreport Threat 47 | . . . 1 . . . 2 . 2 6 . . . . 6 . 7 1 . . 4 4 . . . . 8 . . . . . 4 2 Locate Traps 53 | . 2 . 8 . . . 3 . 4 10 . . . . 9 . 4 2 . . 3 1 . . . . 4 . . . . 2 1 . Dispatch Records 1 | . . . 1 . . . . . . . . . . . . . . . . . . . . . . . . . . . . . . . Transport Status 1 | . . . . . . . . . . 1 . . . . . . . . . . . . . . . . . . . . . . . . Investigation Status 1 | . . . 1 . . . . . . . . . . . . . . . . . . . . . . . . . . . . . . . Extermination Status 3 | . . . . . . . . . . 2 . . . . 1 . . . . . . . . . . . . . . . . . . . Assault Status 3 | . . . 1 . . . . . . 2 . . . . . . . . . . . . . . . . . . . . . . . . Recall Extermination 1 | . . . . . . . . . . . . . . . 1 . . . . . . . . . . . . . . . . . . . Hauler Manifests 6 | . . . 2 . . . 1 . . 1 . . . . . . . . . . 1 . . . . . 1 . . . . . . . Registered Components 1 | . . . 1 . . . . . . . . . . . . . . . . . . . . . . . . . . . . . . . Registered Prototypes 3 | . . . 1 . . . . . . 1 . . . . . . 1 . . . . . . . . . . . . . . . . . Zone Layout 4 | . . . 3 . . . . . . . . . . . . . . . . . . . . . . . . . . . . . . 1 Garrison Registry 1 | . . . . . . . . 1 . . . . . . . . . . . . . . . . . . . . . . . . . . Patrol Navigation 1 | . . . . . . . . 1 . . . . . . . . . . . . . . . . . . . . . . . . . . Derelict Proto ID Bank 1 | . . . . . 1 . . . . . . . . . . . . . . . . . . . . . . . . . . . . . Fabricator Hacks 26 | . . . . . . . . . . 1 . . . . 16 . 5 . . . . . . . . . 4 . . . . . . . Network Status 3 | . . . . . . . . . . 1 . . . . 2 . . . . . . . . . . . . . . . . . . . Load Schematic 10 | . . . . . . . . . . . . . . . 6 . 2 . . . . . . . . . 2 . . . . . . . Build 13 | . . . . . . . . . . . . . . . 8 . 3 . . . . . . . . . 2 . . . . . . . Repair Station Hacks 5 | . 3 . . . . . . . . . . . . . 2 . . . . . . . . . . . . . . . . . . . Scan Component 1 | . . . . . . . . . . . . . . . 1 . . . . . . . . . . . . . . . . . . . Repair 1 | . . . . . . . . . . . . . . . 1 . . . . . . . . . . . . . . . . . . . Refit 3 | . 3 . . . . . . . . . . . . . . . . . . . . . . . . . . . . . . . . . Recycling Unit Hacks 24 | . 2 . 2 . . . 3 . 1 4 . . . . 7 . . . . . . 3 . . . . 1 . . . 1 . . . Report Inventory 19 | . 2 . 2 . . . 2 . 1 4 . . . . 5 . . . . . . 1 . . . . 1 . . . 1 . . . Retrieve Matter 2 | . . . . . . . . . . . . . . . . . . . . . . 2 . . . . . . . . . . . . Retrieve Components 3 | . . . . . . . 1 . . . . . . . 2 . . . . . . . . . . . . . . . . . . . Scanalyzer . | . . . . . . . . . . . . . . . . . . . . . . . . . . . . . . . . . . . Garrison Access Hacks 14 | . . . . . . . 1 . . 3 . . . . 4 . 2 . . . 1 2 . . . . . . . . . . . 1 Unlock Access 1 | . . . . . . . 1 . . . . . . . . . . . . . . . . . . . . . . . . . . . Seal Access 13 | . . . . . . . . . . 3 . . . . 4 . 2 . . . 1 2 . . . . . . . . . . . 1 Unauthorized Hacks 115 | . 8 . 29 . . . 21 . 2 16 . . . . 17 . 4 . . . 6 . . . . . 6 . . . . 2 2 2 Terminals 88 | . 5 . 22 . . . 12 . 1 11 . . . . 15 . 4 . . . 6 . . . . . 6 . . . . 2 2 2 Track 11 | . . . 6 . . . 4 . . . . . . . 1 . . . . . . . . . . . . . . . . . . . Assimilate 3 | . . . . . . . . . . . . . . . 3 . . . . . . . . . . . . . . . . . . . Botnet 50 | . 2 . 3 . . . 3 . 1 10 . . . . 9 . 4 . . . 6 . . . . . 6 . . . . 2 2 2 Disrupt 12 | . . . 7 . . . 4 . . . . . . . 1 . . . . . . . . . . . . . . . . . . . Operators 3 | . . . . . . . 1 . . 1 . . . . 1 . . . . . . . . . . . . . . . . . . . Search 9 | . 3 . 6 . . . . . . . . . . . . . . . . . . . . . . . . . . . . . . . Fabricators 1 | . . . . . . . . . . 1 . . . . . . . . . . . . . . . . . . . . . . . . Haulers 1 | . . . . . . . . . . 1 . . . . . . . . . . . . . . . . . . . . . . . . Repair Stations 1 | . 1 . . . . . . . . . . . . . . . . . . . . . . . . . . . . . . . . . Mechanics 1 | . 1 . . . . . . . . . . . . . . . . . . . . . . . . . . . . . . . . . Recycling Units 12 | . 2 . 4 . . . 4 . 1 1 . . . . . . . . . . . . . . . . . . . . . . . . Reject 1 | . . . . . . . 1 . . . . . . . . . . . . . . . . . . . . . . . . . . . Recyclers 4 | . . . 2 . . . 1 . . 1 . . . . . . . . . . . . . . . . . . . . . . . . Tunnel 7 | . 2 . 2 . . . 2 . 1 . . . . . . . . . . . . . . . . . . . . . . . . . Scanalyzers 7 | . . . 3 . . . 2 . . 1 . . . . 1 . . . . . . . . . . . . . . . . . . . Researchers 2 | . . . 1 . . . . . . 1 . . . . . . . . . . . . . . . . . . . . . . . . Extract 5 | . . . 2 . . . 2 . . . . . . . 1 . . . . . . . . . . . . . . . . . . . Garrison Access 6 | . . . . . . . 3 . . 2 . . . . 1 . . . . . . . . . . . . . . . . . . . Broadcast 2 | . . . . . . . 1 . . 1 . . . . . . . . . . . . . . . . . . . . . . . . Intercept 1 | . . . . . . . 1 . . . . . . . . . . . . . . . . . . . . . . . . . . . Watchers 3 | . . . . . . . 1 . . 1 . . . . 1 . . . . . . . . . . . . . . . . . . . Data Cores Recovered 15 | . . . 2 . . . 1 . 3 2 . . . . 3 . 1 . . . . . . . . . 2 . . . . . . 1 Used 6 | . . . . . . . . . 1 2 . . . . 2 . . . . . . . . . . . 1 . . . . . . . Hacking Detections 115 | . 7 . 14 . . . 7 3 8 18 . . . . 22 . 7 3 1 . 7 2 . . . . 9 . . . . 2 2 3 Full Trace Events 23 | . 5 . 1 . . . 1 . . 1 . . . . 7 . 4 2 . . . . . . . . 2 . . . . . . . Feedback Events 1 | . . . . . . . . . . . . . . . . . . 1 . . . . . . . . . . . . . . . . Corruption 1 | . . . . . . . . . . . . . . . . . . 1 . . . . . . . . . . . . . . . . Feedback Blocked . | . . . . . . . . . . . . . . . . . . . . . . . . . . . . . . . . . . . Robot Schematics Acquired 9 | . . . . . . . . . . . . . 5 . 3 . . . . . 1 . . . . . . . . . . . . . Robots Built . | . . . . . . . . . . . . . . . . . . . . . . . . . . . . . . . . . . . Authchips . | . . . . . . . . . . . . . . . . . . . . . . . . . . . . . . . . . . . Time . | . . . . . . . . . . . . . . . . . . . . . . . . . . . . . . . . . . . Total Robot Build Rating . | . . . . . . . . . . . . . . . . . . . . . . . . . . . . . . . . . . . Part Schematics Acquired 57 | . . . 10 . . . 6 . 1 6 . . 10 . 9 . 2 . . . 4 . . . 4 . 5 . . . . . . . Parts Built 12 | . . . . . . . . . . . . . . . 8 . 2 . . . . . . . . . 2 . . . . . . . Authchips . | . . . . . . . . . . . . . . . . . . . . . . . . . . . . . . . . . . . Time 1151 | . . . . . . . . . . . . . . . 734 . 231 . . . . . . . . . 186 . . . . . . . Total Part Build Rating 58 | . . . . . . . . . . . . . . . 36 . 8 . . . . . . . . . 14 . . . . . . . Parts Repaired 1 | . . . . . . . . . . . . . . . 1 . . . . . . . . . . . . . . . . . . . Time 44 | . . . . . . . . . . . . . . . 44 . . . . . . . . . . . . . . . . . . . Parts Recycled . | . . . . . . . . . . . . . . . . . . . . . . . . . . . . . . . . . . . Recycled Matter . | . . . . . . . . . . . . . . . . . . . . . . . . . . . . . . . . . . . Retrieved Matter . | . . . . . . . . . . . . . . . . . . . . . . . . . . . . . . . . . . . Retrieved Components 7 | . . . . . . . 3 . . . . . . . 4 . . . . . . . . . . . . . . . . . . . Parts Scanalyzed . | . . . . . . . . . . . . . . . . . . . . . . . . . . . . . . . . . . . Part Schematics Acquired . | . . . . . . . . . . . . . . . . . . . . . . . . . . . . . . . . . . . Parts Damaged . | . . . . . . . . . . . . . . . . . . . . . . . . . . . . . . . . . . . Bothacking | -11 -10 -10 -9 -9 -9 -8 -8 -8 -8 -7 -7 -7 -7 -6 -6 -6 -6 -6 -6 -6 -6 -5 -5 -5 -5 -4 -4 -4 -4 -4 -3 -3 -2 -1 ------------ Run | Yrd Mat Min Mat Min Exi Min Mat Gar Mat Fac Low Low Dat Pro Fac Was Fac Ext Cet Arc Hub Fac Upp Upp Zhi Pro Fac Upp Upp War Pro Res Res Acc Used RIF Installer 1 | . . . . . . . . 1 . . . . . . . . . . . . . . . . . . . . . . . . . . Robots Hacked 1 | . . . . . . . . . . 1 . . . . . . . . . . . . . . . . . . . . . . . . Non-combat 1 | . . . . . . . . . . 1 . . . . . . . . . . . . . . . . . . . . . . . . Combat . | . . . . . . . . . . . . . . . . . . . . . . . . . . . . . . . . . . . Robot Hacks Applied 1 | . . . . . . . . . . 1 . . . . . . . . . . . . . . . . . . . . . . . . find_chute 1 | . . . . . . . . . . 1 . . . . . . . . . . . . . . . . . . . . . . . . Relay Couplers Released 12 | . . . . . . . . 11 . . . . . . 1 . . . . . . . . . . . . . . . . . . . Machine Destruction 10 | . . . . . . . . 9 . . . . . . 1 . . . . . . . . . . . . . . . . . . . Programmers 2 | . . . . . . . . 2 . . . . . . . . . . . . . . . . . . . . . . . . . . Fabnet Peak Effective % . | . . . . . . . . . . . . . . . . . . . . . . . . . . . . . . . . . . . Robots Rewired . | . . . . . . . . . . . . . . . . . . . . . . . . . . . . . . . . . . . Allies Hacked . | . . . . . . . . . . . . . . . . . . . . . . . . . . . . . . . . . . . Hacks Repelled . | . . . . . . . . . . . . . . . . . . . . . . . . . . . . . . . . . . . Allies | -11 -10 -10 -9 -9 -9 -8 -8 -8 -8 -7 -7 -7 -7 -6 -6 -6 -6 -6 -6 -6 -6 -5 -5 -5 -5 -4 -4 -4 -4 -4 -3 -3 -2 -1 -------- Run | Yrd Mat Min Mat Min Exi Min Mat Gar Mat Fac Low Low Dat Pro Fac Was Fac Ext Cet Arc Hub Fac Upp Upp Zhi Pro Fac Upp Upp War Pro Res Res Acc Total Allies 39 | . . . . 3 . . . . . . . . . . 2 21 . 8 5 . . . . . . . . . . . . . . . Largest Group 21 | . . . . 3 . . . . . . . . . . 1 21 21 8 12 11 9 . . . . . . . . . . . . . Highest-Rated Group 824 | . . . . 40 . . . . . . . . . . 26 780 780 367 824 793 603 . . . . . . . . . . . . . Highest-Rated Ally 159 | . . . . 16 . . . . . . . . . . 26 50 50 159 159 159 96 . . . . . . . . . . . . . Total Orders . | . . . . . . . . . . . . . . . . . . . . . . . . . . . . . . . . . . . Ally Attacks 217 | . . . . . . . . . . . . . . . . . 128 34 25 8 22 . . . . . . . . . . . . . Total Damage 6217 | . . . . . . . . . . . . . . . . . 4232 542 602 129 712 . . . . . . . . . . . . . Kills 45 | . . . . . . . . . . . . . . . . . 32 4 3 1 5 . . . . . . . . . . . . . Allies Corrupted 5 | . . . . . . . . . . . . . . . . . 2 . . . 3 . . . . . . . . . . . . . Allies Melted . | . . . . . . . . . . . . . . . . . . . . . . . . . . . . . . . . . . . Intel | -11 -10 -10 -9 -9 -9 -8 -8 -8 -8 -7 -7 -7 -7 -6 -6 -6 -6 -6 -6 -6 -6 -5 -5 -5 -5 -4 -4 -4 -4 -4 -3 -3 -2 -1 ------- Run | Yrd Mat Min Mat Min Exi Min Mat Gar Mat Fac Low Low Dat Pro Fac Was Fac Ext Cet Arc Hub Fac Upp Upp Zhi Pro Fac Upp Upp War Pro Res Res Acc Robot Analysis Total 64 | . 7 . 3 . . . 3 . 6 8 . . . . 10 . . 1 . . . 6 . . 4 . 8 . . . . . 1 7 Derelict Logs Recovered 17 | . . 2 . 2 . . . . . . 2 3 . 2 . . . . . . . . 2 1 . 1 . 1 1 . . . . . Drone Launches . | . . . . . . . . . . . . . . . . . . . . . . . . . . . . . . . . . . . Drone Recoveries . | . . . . . . . . . . . . . . . . . . . . . . . . . . . . . . . . . . . Exploration | -11 -10 -10 -9 -9 -9 -8 -8 -8 -8 -7 -7 -7 -7 -6 -6 -6 -6 -6 -6 -6 -6 -5 -5 -5 -5 -4 -4 -4 -4 -4 -3 -3 -2 -1 ------------- Run | Yrd Mat Min Mat Min Exi Min Mat Gar Mat Fac Low Low Dat Pro Fac Was Fac Ext Cet Arc Hub Fac Upp Upp Zhi Pro Fac Upp Upp War Pro Res Res Acc Turns Passed 18763 | 62 2794 353 2222 333 130 295 1030 673 658 1668 434 379 28 493 1078 202 522 456 261 2434 249 231 63 97 66 123 375 174 99 320 160 64 176 61 Spaces Moved 27798 | 32 1538 701 2105 766 447 765 1121 882 1131 3678 1145 1143 120 1090 2697 195 1087 786 378 188 758 641 206 281 209 403 991 528 292 280 380 246 303 285 Core 54 | 32 20 . . . . . . . . 2 . . . . . . . . . . . . . . . . . . . . . . . . Treads . | . . . . . . . . . . . . . . . . . . . . . . . . . . . . . . . . . . . Legs . | . . . . . . . . . . . . . . . . . . . . . . . . . . . . . . . . . . . Wheels . | . . . . . . . . . . . . . . . . . . . . . . . . . . . . . . . . . . . Hover . | . . . . . . . . . . . . . . . . . . . . . . . . . . . . . . . . . . . Flight 27744 | . 1518 701 2105 766 447 765 1121 882 1131 3676 1145 1143 120 1090 2697 195 1087 786 378 188 758 641 206 281 209 403 991 528 292 280 380 246 303 285 Fastest Speed 7 | 50 34 31 29 29 29 29 24 24 23 23 23 23 23 23 20 20 20 20 20 20 20 20 20 20 20 20 17 17 17 7 17 7 7 7 Average Speed 23 | 50 35 32 30 29 29 29 25 24 23 23 23 23 23 23 21 20 20 20 20 20 20 20 20 20 20 20 19 17 17 16 17 16 15 15 Slowest Speed 150 | 50 50 34 31 29 29 29 29 24 24 150 23 97 23 23 90 20 20 20 20 20 20 20 20 20 88 20 20 17 20 17 17 17 17 17 Overloaded Moves 124 | . . . . . . . . . . . . . . . . . . . . . . . . . . . . . . 8 . 17 48 51 Propulsion Burnouts . | . . . . . . . . . . . . . . . . . . . . . . . . . . . . . . . . . . . Robots Hopped 214 | . 5 10 15 5 . 3 6 1 10 49 . . . . 50 . 1 3 . . 11 19 . . . . 10 . . . . 3 9 4 Cave-ins Triggered . | . . . . . . . . . . . . . . . . . . . . . . . . . . . . . . . . . . . Teleports 1 | . . . . . . . . . . . . . . . . . . . . . . . . . 1 . . . . . . . . . Exploration Rate (%) 66 | 4 99 99 99 99 93 98 83 90 98 86 99 99 72 98 62 95 34 90 85 97 73 24 46 46 62 63 28 72 43 20 53 10 13 10 Regions Visited 34 Branch Regions 20 Pre-discovered Areas 16 | . 2 1 2 2 1 . 2 . 1 . . 1 1 . . . . . . . . . . . 3 . . . . . . . . . Known Exits Taken 16 | . 1 . 1 . . 1 1 . 1 1 . . . . . . 1 1 1 . 1 1 1 . . . 1 . . . 1 1 1 . Unknown Exits Taken 15 | 1 . 1 . 1 1 . . . . . 1 1 1 1 . . . . . 1 . . . 1 1 1 . 1 1 1 . . . . Scrap Searched 36 | . . 2 . 2 . 2 . . . . 9 5 . 3 . . . . . . . . 1 1 . 3 . 4 2 . 2 . . . Spaces Dug 23 | . 1 . . . . . . . . . . . . . 2 . . 4 . . . . . . . . 8 . . . . 4 . 4 Terrain Destroyed 1783 | . 163 16 277 . . . 28 5 53 125 2 9 . 21 140 . 85 52 15 21 372 73 16 20 . 14 156 22 14 3 12 18 42 9 Melee 1 | . 1 . . . . . . . . . . . . . . . . . . . . . . . . . . . . . . . . . Projectile 612 | . . . . . . . . 5 53 6 2 9 . 21 85 . 41 52 15 21 55 26 16 20 . 14 51 22 14 3 12 18 42 9 AOE 1169 | . 162 16 277 . . . 28 . . 118 . . . . 55 . 44 . . . 317 47 . . . . 105 . . . . . . . Terrain Rammed . | . . . . . . . . . . . . . . . . . . . . . . . . . . . . . . . . . . . Walls Destroyed . | . . . . . . . . . . . . . . . . . . . . . . . . . . . . . . . . . . . Machines Disabled . | . . . . . . . . . . . . . . . . . . . . . . . . . . . . . . . . . . . Actions | -11 -10 -10 -9 -9 -9 -8 -8 -8 -8 -7 -7 -7 -7 -6 -6 -6 -6 -6 -6 -6 -6 -5 -5 -5 -5 -4 -4 -4 -4 -4 -3 -3 -2 -1 --------- Run | Yrd Mat Min Mat Min Exi Min Mat Gar Mat Fac Low Low Dat Pro Fac Was Fac Ext Cet Arc Hub Fac Upp Upp Zhi Pro Fac Upp Upp War Pro Res Res Acc Total 37116 | 66 3417 764 3260 810 446 803 1508 1230 1354 4169 1282 1210 119 1298 3020 357 1331 996 536 2567 801 690 217 305 230 429 1097 579 325 545 437 256 372 290 Wait 6496 | 24 1601 17 851 7 . 20 75 151 28 183 91 13 . 138 162 155 112 65 100 2357 3 13 2 1 1 5 17 14 13 260 5 4 4 4 Move 27351 | 31 1527 681 2074 755 446 758 1108 879 1110 3583 1144 1142 119 1089 2599 194 1082 779 377 187 735 610 205 280 208 402 971 527 291 279 379 239 285 276 Hop 197 | . 5 9 15 5 . 3 6 1 10 45 . . . . 48 . 1 3 . . 11 11 . . . . 9 . . . . 3 8 4 Pick Up 4 | . . . . . . . . . . 3 . . . . . . . . . 1 . . . . . . . . . . . . . . Fast Attach 109 | 7 9 3 13 . . . 15 2 3 5 3 2 . 2 10 3 . . 9 . 1 . . . 10 . 8 . 2 . . . 2 . Attach . | . . . . . . . . . . . . . . . . . . . . . . . . . . . . . . . . . . . Detach . | . . . . . . . . . . . . . . . . . . . . . . . . . . . . . . . . . . . Swap 54 | . . 2 10 . . . 6 . 4 5 . 1 . . 7 1 2 4 . 3 1 2 . . 2 . 3 . . . . . . 1 Drop 121 | . 7 4 19 . . . 17 2 7 9 2 3 . . 13 4 2 . 9 1 . 1 . . 9 . 8 . 2 . . . 2 . Fire 1858 | 4 213 24 232 37 . 19 218 84 120 218 24 33 . 32 132 . 58 82 24 14 35 29 8 13 . 13 59 27 13 6 31 8 43 5 Melee 19 | . 13 6 . . . . . . . . . . . . . . . . . . . . . . . . . . . . . . . . Ram . | . . . . . . . . . . . . . . . . . . . . . . . . . . . . . . . . . . . Kick . | . . . . . . . . . . . . . . . . . . . . . . . . . . . . . . . . . . . Crush . | . . . . . . . . . . . . . . . . . . . . . . . . . . . . . . . . . . . Escape Stasis 183 | . . . . . . . . 90 . 18 . . . . . . 57 18 . . . . . . . . . . . . . . . . Rewire . | . . . . . . . . . . . . . . . . . . . . . . . . . . . . . . . . . . . Trap . | . . . . . . . . . . . . . . . . . . . . . . . . . . . . . . . . . . . Miscellaneous 724 | . 42 18 46 6 . 3 63 21 72 100 18 16 . 37 49 . 17 45 17 4 15 24 2 11 . 9 22 11 4 . 22 2 28 . Route ------- -11/Scrapyard -10/Materials (discovered 5 exits: *Mat x3 / *Min x2) -10/Mines (discovered 2 exits: *Mat x2) -9/Materials (discovered 4 exits: *Mat x3 / *Min) -9/Mines (discovered 3 exits: *Mat x2 / *Exi) -9/Exiles (discovered 2 exits: [*Min x2]) -8/Mines (discovered 2 exits: *Mat x2) -8/Materials (discovered 4 exits: *Fac x3 / Gar) -8/Garrison (discovered 3 exits: *Mat x3) -8/Materials (discovered 3 exits: *Fac x3) -7/Factory (discovered 7 exits: *Fac x3 / *Sto x2 / *Low x2) -7/Lower Caves -7/Lower Caves (discovered 2 exits: *Fac / *Dat) -7/Data Miner -6/Proximity Caves -6/Factory (discovered 8 exits: *Fac x4 / *Low x2 / *Ext x2) -6/Waste -6/Factory (discovered 6 exits: *Fac x2 / Low x2 / *Ext x2) -6/Extension (discovered 3 exits: *Fac x2 / *Cet) -6/Cetus (discovered 2 exits: *Fac / *Arc) -6/Archives (discovered 3 exits: *Fac / *Hub x2) -6/Hub_04(d) (discovered 4 exits: *Fac x4) -5/Factory (discovered 2 exits: *Upp x2) -5/Upper Caves -5/Upper Caves -5/Zhirov -4/Proximity Caves -4/Factory (discovered 7 exits: *Res x4 / *Upp x2 / Arm) -4/Upper Caves -4/Upper Caves -4/Warlord -3/Proximity Caves -3/Research (discovered 5 exits: *Res x3 / Qua x2) -2/Research (discovered 5 exits: *Acc x3 / Tes x2) -1/Access (discovered 2 exits: *Sur / Com) To Epsilon Eridani History --------- Turn | Location | Event 2 | -11/Scrapyard | Met Revision 17 2 | -11/Scrapyard | Upgraded with Propulsion slot (x1) 2 | -11/Scrapyard | Upgraded with Utility slot (x1) 2 | -11/Scrapyard | Upgraded with Weapon slot (x1) 10 | -11/Scrapyard | Discovered new exit (range 15) 63 | -11/Scrapyard | Entered Materials 158 | -10/Materials | Discovered new exit (range 15) 385 | -10/Materials | Build established: Scavenger-Mutant 1254 | -10/Materials | Reached level 2 1258 | -10/Materials | Discovered new exit (range 10) 1259 | -10/Materials | Upgraded with Utility slot (x1) 1308 | -10/Materials | Central database locked down 1455 | -10/Materials | Build established: Mutant 1895 | -10/Materials | Discovered new exit (range 7) 1984 | -10/Materials | Identified exit to Mines 2168 | -10/Materials | Reached level 3 2255 | -10/Materials | Upgraded with Propulsion slot (x1) 2447 | -10/Materials | Reached level 4 2453 | -10/Materials | Upgraded with Weapon slot (x1) 2857 | -10/Materials | Entered Mines 2859 | -10/Mines | Reached level 5 2861 | -10/Mines | Learned location of Mines (-8) 2868 | -10/Mines | Discovered new exit (range 7) 2948 | -10/Mines | Learned Materials security intel 3045 | -10/Mines | Upgraded with Propulsion slot (x1) 3057 | -10/Mines | Discovered new exit (range 8) 3210 | -10/Mines | Entered Materials 3212 | -9/Materials | Reached level 6 3241 | -9/Materials | Central database locked down 3340 | -9/Materials | Reached level 7 3366 | -9/Materials | Upgraded with Utility slot (x1) 3378 | -9/Materials | Destroyed 7 combat bots 3484 | -9/Materials | Discovered new exit (range 10) 3507 | -9/Materials | Identified exit to Materials 3530 | -9/Materials | Build established: Hacker-Sprinter 3576 | -9/Materials | Reached level 8 3592 | -9/Materials | Identified exit to Mines 3610 | -9/Materials | First assault squad dispatched 3737 | -9/Materials | Destroyed 8 combat bots 3799 | -9/Materials | Upgraded with Utility slot (x1) 3868 | -9/Materials | Reached level 9 3874 | -9/Materials | Upgraded with Utility slot (x1) 3879 | -9/Materials | Central database locked down 3879 | -9/Materials | Central database locked down 3977 | -9/Materials | Discovered exit to Materials (range 16) 4168 | -9/Materials | Discovered exit to Materials (range 15) 4267 | -9/Materials | Reached level 10 4681 | -9/Materials | Sterilization system engaged 4681 | -9/Materials | Non-combat units ordered to evacuate 4721 | -9/Materials | Destroyed 8 combat bots 4781 | -9/Materials | Combat units ordered to evacuate 4981 | -9/Materials | Ambient heat levels rising (+10) 5131 | -9/Materials | Ambient heat levels rising (+10) 5281 | -9/Materials | Ambient heat levels rising (+10) 5431 | -9/Materials | Ambient heat levels rising (+10) 5432 | -9/Materials | Entered Mines 5504 | -9/Mines | Assisted by bots powering up and referring to "LRC-V3" 5508 | -9/Mines | Deemed a non-threat by the Exiles lab entrance 5508 | -9/Mines | Discovered new exit (range 5) 5551 | -9/Mines | Reached level 11 5625 | -9/Mines | Discovered exit to Materials (range 9) 5640 | -9/Mines | Received a Rocket Launcher from a helpful Derelict 5650 | -9/Mines | Discovered exit to Materials (range 12) 5678 | -9/Mines | Joined a pair of Derelicts in attacking an 0b10 outpost 5704 | -9/Mines | Learned location of Storage (-7) 5765 | -9/Mines | Entered Exiles 5770 | -9/Exiles | Discovered new exit (range 14) 5777 | -9/Exiles | Met 8R-AWN 5781 | -9/Exiles | Met EX-HEX 5789 | -9/Exiles | Met EX-BIN 5793 | -9/Exiles | Aligned with FarCom system 5793 | -9/Exiles | Given EX-Vault access code 5800 | -9/Exiles | Opened EX-Vault 5816 | -9/Exiles | Warned to stay clear of 0b10 Research branches 5830 | -9/Exiles | Learned location of Zion (-6) 5830 | -9/Exiles | Met EX-DEC 5850 | -9/Exiles | Visited The Gauntlet 5891 | -9/Exiles | Discovered new exit (range 14) 5895 | -9/Exiles | Entered Mines 5929 | -8/Mines | Discovered exit to Materials (range 6) 6043 | -8/Mines | Discovered exit to Materials (range 12) 6190 | -8/Mines | Entered Materials 6192 | -8/Materials | Reached level 12 6211 | -8/Materials | Upgraded with Utility slot (x1) 6243 | -8/Materials | Discovered new exit (range 10) 6357 | -8/Materials | Reached level 13 6431 | -8/Materials | Destroyed 9 combat bots 6469 | -8/Materials | Discovered new exit (range 10) 6481 | -8/Materials | Identified exit to Garrison 6499 | -8/Materials | Upgraded with Propulsion slot (x1) 6500 | -8/Materials | Central database locked down 6590 | -8/Materials | First assault squad dispatched 6611 | -8/Materials | Discovered new exit (range 5) 6703 | -8/Materials | Destroyed 11 combat bots 6751 | -8/Materials | Reached level 14 6909 | -8/Materials | Identified exit to Factory 6951 | -8/Materials | Garrison activated, responded to threat 7028 | -8/Materials | Upgraded with Weapon slot (x1) 7063 | -8/Materials | Found Prototype Device 7063 | -8/Materials | Identified Active Sensor Suite 7117 | -8/Materials | Sterilization system engaged 7117 | -8/Materials | Non-combat units ordered to evacuate 7171 | -8/Materials | Destroyed 12 combat bots 7217 | -8/Materials | Combat units ordered to evacuate 7220 | -8/Materials | Entered Garrison 7223 | -8/Garrison | Installed Relay Interface Framework 7229 | -8/Garrison | Garrison Relay disabled 7232 | -8/Garrison | Triggered checkpoint 7285 | -8/Garrison | Triggered checkpoint 7323 | -8/Garrison | Destroyed 7 combat bots 7330 | -8/Garrison | Triggered checkpoint 7368 | -8/Garrison | Garrison Relay disabled 7399 | -8/Garrison | Discovered new exit (range 8) 7420 | -8/Garrison | Triggered checkpoint 7420 | -8/Garrison | Reached level 15 7454 | -8/Garrison | Triggered checkpoint 7504 | -8/Garrison | Triggered checkpoint 7518 | -8/Garrison | Garrison Relay disabled 7556 | -8/Garrison | Discovered new exit (range 15) 7589 | -8/Garrison | Garrison Relay disabled 7787 | -8/Garrison | Core integrity fell below 50% 7827 | -8/Garrison | Discovered new exit (range 60) 7827 | -8/Garrison | Discovered new exit (range 12) 7827 | -8/Garrison | Discovered new exit (range 43) 7834 | -8/Garrison | Triggered checkpoint 7850 | -8/Garrison | Garrison Relay disabled 7893 | -8/Garrison | Entered Materials 8096 | -8/Materials | Destroyed 10 combat bots 8174 | -8/Materials | Discovered exit to Factory (range 9) 8219 | -8/Materials | High security lockdown imminent 8274 | -8/Materials | Discovered exit to Factory (range 15) 8299 | -8/Materials | High security lockdown engaged 8355 | -8/Materials | Reached level 16 8374 | -8/Materials | Discovered exit to Factory (range 14) 8434 | -8/Materials | Sterilization system engaged 8434 | -8/Materials | Non-combat units ordered to evacuate 8534 | -8/Materials | Combat units ordered to evacuate 8538 | -8/Materials | Destroyed 53 combat bots 8551 | -8/Materials | Entered Factory 8582 | -7/Factory | Identified exit to DSF 8678 | -7/Factory | Discovered new exit (range 14) 8791 | -7/Factory | Core integrity fell below 50% 8927 | -7/Factory | Discovered new exit (range 6) 9024 | -7/Factory | Reached level 17 9215 | -7/Factory | Garrison activated, responded to threat 9252 | -7/Factory | Identified exit to Storage 9252 | -7/Factory | Identified exit to Lower Caves 9358 | -7/Factory | Build established: Wizard-Sprinter 9393 | -7/Factory | Discovered new exit (range 14) 9395 | -7/Factory | First assault squad dispatched 9528 | -7/Factory | Central database locked down 9561 | -7/Factory | High security lockdown imminent 9582 | -7/Factory | Destroyed 17 combat bots 9587 | -7/Factory | Discovered new exit (range 16) 9641 | -7/Factory | High security lockdown engaged 9670 | -7/Factory | Garrison activated, responded to threat 9672 | -7/Factory | Reached level 18 9733 | -7/Factory | Destroyed 15 combat bots 9864 | -7/Factory | Destroyed 10 combat bots 10014 | -7/Factory | Destroyed 24 combat bots 10117 | -7/Factory | Destroyed 17 combat bots 10219 | -7/Factory | Entered Lower Caves 10240 | -7/Lower Caves | Encountered a Warlord checkpoint 10318 | -7/Lower Caves | Reached level 19 10327 | -7/Lower Caves | Upgraded with Weapon slot (x1) 10366 | -7/Lower Caves | Destroyed 9 combat bots 10453 | -7/Lower Caves | Learned Factory emergency access door positions 10533 | -7/Lower Caves | Discovered new exit (range 11) 10593 | -7/Lower Caves | Attracted the attention of an 0b10 outpost 10619 | -7/Lower Caves | Destroyed 7 combat bots 10653 | -7/Lower Caves | Entered another Lower Caves area 10656 | -7/Lower Caves | Encountered a Warlord checkpoint 10683 | -7/Lower Caves | Discovered new exit (range 4) 10765 | -7/Lower Caves | Learned Factory terminal intel 10796 | -7/Lower Caves | Attacked by a delusional Derelict stockpiling parts 10828 | -7/Lower Caves | Spotted B-75 Beast 10841 | -7/Lower Caves | Destroyed B-75 Beast 10851 | -7/Lower Caves | Discovered new exit (range 11) 10948 | -7/Lower Caves | Attracted the attention of an 0b10 outpost 10974 | -7/Lower Caves | Learned Factory emergency access door positions 11006 | -7/Lower Caves | Destroyed 7 combat bots 11032 | -7/Lower Caves | Entered Data Miner 11032 | -7/Data Miner | Discovered new exit (range 6) 11037 | -7/Data Miner | Met Data Miner 11044 | -7/Data Miner | Learned location of Section 7 (-2) 11044 | -7/Data Miner | Acquired the access code to Warlord's prototype stash 11048 | -7/Data Miner | Received God Mode back door access code from Data Miner 11060 | -7/Data Miner | Entered Proximity Caves 11063 | -6/Proximity Caves | Spotter reported a threat 11117 | -6/Proximity Caves | Attracted the attention of an 0b10 outpost 11147 | -6/Proximity Caves | Destroyed 12 combat bots 11185 | -6/Proximity Caves | Learned Factory interactive machine intel 11477 | -6/Proximity Caves | Reached level 20 11521 | -6/Proximity Caves | Discovered new exit (range 15) 11553 | -6/Proximity Caves | Entered Factory 11555 | -6/Factory | Loaded intel: 54 interactive machine locations 11556 | -6/Factory | Loaded intel: 28 terminal locations 11563 | -6/Factory | Discovered new exit (range 11) 11589 | -6/Factory | Identified exit to Lower Caves 11589 | -6/Factory | Identified exit to Extension 11599 | -6/Factory | Discovered new exit (range 13) 11622 | -6/Factory | Destroyed 7 combat bots 11632 | -6/Factory | Fabricated Imp. Powered Armor? 11637 | -6/Factory | Garrison activated, responded to threat 11662 | -6/Factory | Identified exit to Factory 11815 | -6/Factory | Destroyed 12 combat bots 11844 | -6/Factory | Fabricated Imp. Remote Datajack? 11931 | -6/Factory | Repaired Weapon Cycler 11983 | -6/Factory | Destroyed 7 combat bots 11987 | -6/Factory | Spotted B-75 Beast 12008 | -6/Factory | Reached level 21 12008 | -6/Factory | Destroyed B-75 Beast 12010 | -6/Factory | Upgraded with Propulsion slot (x1) 12167 | -6/Factory | Fabricated Cld. VTOL Module? 12253 | -6/Factory | First assault squad dispatched 12271 | -6/Factory | Central database locked down 12282 | -6/Factory | Garrison activated, responded to threat 12318 | -6/Factory | Fabricated Powered Armor? 12338 | -6/Factory | Destroyed 8 combat bots 12341 | -6/Factory | Fabricated Cld. VTOL Module? 12463 | -6/Factory | Fabricated Cld. VTOL Module? 12515 | -6/Factory | Fabricated Cld. VTOL Module (x1) 12560 | -6/Factory | Destroyed 16 combat bots 12631 | -6/Factory | Manually triggered Chute Trap 12631 | -6/Factory | Sucked down chute 12631 | -6/Factory | Entered Waste 12632 | -6/Waste | Met a frightened Derelict 12632 | -6/Waste | Joined by Warlord forces that had cleared the area 12670 | -6/Waste | Found Heavy Servo Lattice 12677 | -6/Waste | Discovered new exit (range 10) 12833 | -6/Waste | Entered Factory 12833 | -6/Factory | Accompanied by 21 allies 12971 | -6/Factory | Discovered exit to Factory (range 15) 12976 | -6/Factory | Reached level 22 12996 | -6/Factory | Fabricated Cld. VTOL Module (x1) 13117 | -6/Factory | Fabricated Cld. VTOL Module (x1) 13183 | -6/Factory | First assault squad dispatched 13259 | -6/Factory | Lost 3 allies 13290 | -6/Factory | Destroyed 9 combat bots 13298 | -6/Factory | Garrison activated, responded to threat 13340 | -6/Factory | Discovered exit to Factory (range 11) 13344 | -6/Factory | Lost 4 allies 13351 | -6/Factory | Destroyed 8 combat bots 13355 | -6/Factory | Entered Extension 13458 | -6/Extension | Destroyed 11 combat bots 13493 | -6/Extension | Rescued a captive Derelict 13493 | -6/Extension | Rescued a captive Derelict 13496 | -6/Extension | Identified exit to Cetus 13498 | -6/Extension | Rescued a captive Derelict 13499 | -6/Extension | Rescued a captive Derelict 13529 | -6/Extension | Destroyed B-75 Beast 13530 | -6/Extension | Disrupted transfer network 13532 | -6/Extension | Spotted B-75 Beast 13538 | -6/Extension | Destroyed B-75 Beast 13562 | -6/Extension | Discovered exit to Factory (range 3) 13620 | -6/Extension | Rescued A7 13637 | -6/Extension | Rescued a captive Derelict 13664 | -6/Extension | Destroyed 7 combat bots 13668 | -6/Extension | Rescued a captive Derelict 13700 | -6/Extension | Rescued a captive Derelict 13705 | -6/Extension | First assault squad dispatched 13728 | -6/Extension | Destroyed 8 combat bots 13729 | -6/Extension | High security lockdown imminent 13730 | -6/Extension | Reached level 23 13742 | -6/Extension | Discovered exit to Factory (range 10) 13809 | -6/Extension | High security lockdown engaged 13811 | -6/Extension | Entered Cetus 13811 | -6/Cetus | Accompanied by 7 allies (A7) 13816 | -6/Cetus | Acquired a Cetus Manufacturing Module code from A7 13816 | -6/Cetus | Spotted Cetus Guard 13818 | -6/Cetus | Spotted Cetus Guard 13818 | -6/Cetus | Spotted Cetus Guard 13821 | -6/Cetus | Destroyed Cetus Guard 13821 | -6/Cetus | Destroyed Cetus Guard 13822 | -6/Cetus | Spotted Cetus Guard 13827 | -6/Cetus | Destroyed Cetus Guard 13829 | -6/Cetus | Destroyed Cetus Guard 13869 | -6/Cetus | Escorted A7 to Cetus Mainframe 13875 | -6/Cetus | Started Cetus Manufacturing Module 13880 | -6/Cetus | Discovered new exit (range 15) 13883 | -6/Cetus | Spotted Cetus Guard 13885 | -6/Cetus | Spotted Cetus Guard 13886 | -6/Cetus | Destroyed Cetus Guard 13889 | -6/Cetus | Spotted Cetus Guard 13890 | -6/Cetus | Destroyed Cetus Guard 13897 | -6/Cetus | Destroyed Cetus Guard 13900 | -6/Cetus | Manufactured an Enhanced Grunt 13903 | -6/Cetus | Destroyed Cetus Guard 13906 | -6/Cetus | Discovered exit to Factory (range 16) 13908 | -6/Cetus | Met Revision 17 13917 | -6/Cetus | Identified exit to Archives 13925 | -6/Cetus | Manufactured an Enhanced Grunt 13950 | -6/Cetus | Manufactured an Enhanced Grunt 13975 | -6/Cetus | Manufactured an Enhanced Grunt 14000 | -6/Cetus | Manufactured an Enhanced Grunt 14072 | -6/Cetus | Entered Archives 14072 | -6/Archives | Accompanied by 11 allies (A7) 14080 | -6/Archives | Received a hacking code to weaken MAIN.C 14100 | -6/Archives | Unable to access archive contents 14100 | -6/Archives | Discovered new exit (range 15) 14102 | -6/Archives | Unable to access archive contents 14102 | -6/Archives | Discovered new exit (range 16) 14107 | -6/Archives | Unable to access archive contents 14108 | -6/Archives | Discovered exit to Factory (range 16) 14109 | -6/Archives | Unable to access archive contents 16506 | -6/Archives | Entered Hub_04(d) 16506 | -6/Hub_04(d) | Accompanied by 9 allies 16522 | -6/Hub_04(d) | Discovered exit to Factory (range 14) 16564 | -6/Hub_04(d) | Discovered exit to Factory (range 4) 16588 | -6/Hub_04(d) | Lost 3 allies 16680 | -6/Hub_04(d) | Destroyed 11 combat bots 16701 | -6/Hub_04(d) | Network Hub disabled 16738 | -6/Hub_04(d) | Network Hub disabled 16738 | -6/Hub_04(d) | Spotted Lightning 16738 | -6/Hub_04(d) | Spotted Lightning 16738 | -6/Hub_04(d) | Spotted Lightning 16755 | -6/Hub_04(d) | Entered Factory 16756 | -5/Factory | Identified exit to Upper Caves 16861 | -5/Factory | Reached level 24 16888 | -5/Factory | Central database locked down 16937 | -5/Factory | Destroyed 8 combat bots 16944 | -5/Factory | Garrison activated, responded to threat 16983 | -5/Factory | Destroyed 10 combat bots 16986 | -5/Factory | Entered Upper Caves 16993 | -5/Upper Caves | Identified exit to Upper Caves 17021 | -5/Upper Caves | Attracted the attention of an 0b10 checkpoint 17049 | -5/Upper Caves | Entered another Upper Caves area 17052 | -5/Upper Caves | Destroyed 9 combat bots 17113 | -5/Upper Caves | Destroyed 7 combat bots 17119 | -5/Upper Caves | Spotted B-75 Beast 17124 | -5/Upper Caves | Destroyed B-75 Beast 17134 | -5/Upper Caves | Discovered new exit (range 7) 17140 | -5/Upper Caves | Learned location of 1 exit from Factory 17146 | -5/Upper Caves | Entered Zhirov 17146 | -5/Zhirov | Discovered new exit (range 4) 17150 | -5/Zhirov | Met Zhirov 17155 | -5/Zhirov | Learned location of Quarantine (-3) 17155 | -5/Zhirov | Learned location of Command (-1) 17158 | -5/Zhirov | Zhirov requested help retrieving the SGEMP Prototype 17162 | -5/Zhirov | Found Alien Artifact 17162 | -5/Zhirov | Identified Integrated Dissipator 17162 | -5/Zhirov | Installed Integrated Dissipator, increased core heat dissipation (+20) 17169 | -5/Zhirov | Found Alien Artifact 17169 | -5/Zhirov | Identified Transdimensional Reconstructor 17169 | -5/Zhirov | Warped through subspace 17212 | -5/Zhirov | Entered Proximity Caves 17214 | -4/Proximity Caves | Reached level 25 17256 | -4/Proximity Caves | Attracted the attention of an 0b10 checkpoint 17328 | -4/Proximity Caves | Discovered new exit (range 9) 17335 | -4/Proximity Caves | Entered Factory 17336 | -4/Factory | Identified exit to Upper Caves 17401 | -4/Factory | Identified exit to Armory 17443 | -4/Factory | Identified exit to Research 17505 | -4/Factory | Fabricated Exp. Hacking Suite? 17515 | -4/Factory | Reached level 26 17517 | -4/Factory | Upgraded with Utility slot (x1) 17549 | -4/Factory | Fabricated Exp. System Shield (x1) 17570 | -4/Factory | Found Exp. System Shield 17638 | -4/Factory | Destroyed 8 combat bots 17710 | -4/Factory | Entered Upper Caves 17713 | -4/Upper Caves | Destroyed 9 combat bots 17738 | -4/Upper Caves | Attracted the attention of an 0b10 checkpoint 17777 | -4/Upper Caves | Destroyed 8 combat bots 17831 | -4/Upper Caves | Attracted the attention of an 0b10 outpost 17859 | -4/Upper Caves | Learned 4 Research zone layouts 17862 | -4/Upper Caves | Discovered new exit (range 12) 17884 | -4/Upper Caves | Entered another Upper Caves area 17886 | -4/Upper Caves | Reached level 27 17891 | -4/Upper Caves | Destroyed 7 combat bots 17925 | -4/Upper Caves | Attracted the attention of an 0b10 checkpoint 17939 | -4/Upper Caves | Discovered new exit (range 10) 17977 | -4/Upper Caves | Learned Research terminal intel 17983 | -4/Upper Caves | Entered Warlord 17989 | -4/Warlord | Destroyed 12 combat bots 17997 | -4/Warlord | Discovered new exit (range 8) 18013 | -4/Warlord | RIF detected upon attempting to enter Warlord's base 18013 | -4/Warlord | Attacked by Warlord forces 18203 | -4/Warlord | Warlord's base attacked by MAIN.C 18303 | -4/Warlord | Entered Proximity Caves 18338 | -3/Proximity Caves | Attracted the attention of an 0b10 checkpoint 18360 | -3/Proximity Caves | Snuck into a huge 0b10 base via the rear entrance 18403 | -3/Proximity Caves | Derelicts attacked a huge 0b10 base 18428 | -3/Proximity Caves | Reached level 28 18448 | -3/Proximity Caves | Discovered exit to Research (range 3) 18463 | -3/Proximity Caves | Entered Research 18465 | -3/Research | Loaded intel: 23 terminal locations 18466 | -3/Research | Spotted B-86 Titan 18467 | -3/Research | Spotted B-86 Titan 18468 | -3/Research | Identified exit to Research 18468 | -3/Research | Identified exit to Quarantine 18471 | -3/Research | Destroyed 10 combat bots 18504 | -3/Research | Identified exit to DSF 18527 | -3/Research | Entered another Research area 18528 | -2/Research | Identified exit to Testing 18529 | -2/Research | Reached level 29 18537 | -2/Research | Reached level 30 18558 | -2/Research | Spotted B-90 Cyclops 18563 | -2/Research | Found Prototype Processor 18563 | -2/Research | Identified Spectral Analyzer 18615 | -2/Research | Identified exit to Access 18633 | -2/Research | Central database locked down 18703 | -2/Research | Entered Access 18705 | -1/Access | Reached level 31 18705 | -1/Access | Reached level 32 18707 | -1/Access | Destroyed 8 combat bots 18728 | -1/Access | Identified exit to Surface 18748 | -1/Access | Identified exit to Command 18764 | *** | Escaped! Last Messages --------------- >>Alert(Purge) Purged threat record, alert level lowered. 18751_ Slug penetrates W-44 Eye. 18751_ W-44 Eye destroyed. 18751_ Slug penetrates A-15 Conveyor. 18751_ A-15 Conveyor calls for reinforcements. 18751_ ALERT: Hostile activity reported, dispatching reinforcements to area. 18752_ K-01 Serf collects debris. 18753_ R-10 Processor collects Adv. Visual Processing Unit. 18754_ Acquired 30 matter. 18760_ Detecting nearby Garrison Access. 18763_ Slug penetrates H-88 Terminator. 18763_ K-01 Serf destroyed. 18763_ Penetrated by Slug. 18763_ Critical hit (Destroy). 18763_ Connecting with Terminal... >>Open(Door) Sealed Barrier opened. 18764_ The Access Shell folds into the floor. Map ----- +----------------------------------------------------+ | ?????????????????????????????????????????????????? | | ?????????????????????????????????????????????????? | | ?????????????????????????????????????????????????? | | ?????????????????????????????????????????????????? | | ?????????????????????????????????????????????????? | | ?????????????????????????????????????????????????? | | ?????????????????????????????????????????????????? | | ?????????????????????????????????????????????????? | | ?????????????????????????????????????????????????? | | ?????????????????????????????????????????????????? | | ?????????????????????????????????????????????????? | | ?????????????????????????????????????????????????? | | ?????????????????????????????????????????????????? | | ?????????????????????????????????????????????????? | | ?????????????????????BB????BB????????????????????? | | ?????????????????????BB????BB????????????????????? | | ?????????????????????????????????????????????????? | | ?????????????????????????????????????????????????? | | ?????????????????????????????????????????????????? | | ?????????????????????????????????????????????????? | | ???????????????????#""""""""""#??????????????????? | | ???????????????????# #??????????????????? | | ???????????????????# #??????????????????? | | ???????????????????# #??????????????????? | | ???????????????????# "" #?##???????????????? | | ???????????????????# "@ #?# ???????????????? | | ???????????????????# #?# ??????????????? | | ???????????????????# #?# ??????????????? | | ???????????????????# #?# ??????????????? | | ??????????????????## ### ??????????????? | | ??????????????????# ## """???????????? | | ??????????????????##"" ### """""" #???? | | ???????????????????#"" #?# """""" #???? | | ???????????????????#"" #?# """""" ?????? | | ???????????????????#T ### """""" ???????? | | ???????????????????#"" ## Y ?????????? | | ???????????????????#"" #?? ???????????? | | ???????????????????#"" #####+############## | | ?????????????? g h = | | ?????????????? hh h%! | | ??????????????/####################+#############+ | | ??????????????????????????????????????????????? | | ?????????????????????????????????????????????# | | ?????????????????????????????????????????????# | | ?????????????????????????????????????????????# " | | ?????????????????????????????????????????????# "" | | ?????????????????????????????????????????????# "F | | ?????????????????????????????????????????????# "" | | ?????????????????????????????????????????????# "" | | ?????????????????????????????????????????????# ?? | +----------------------------------------------------+ Best States ------------- Heat Dissipation 123 Energy Generation 34 Energy Capacity 295 Matter Stores 350 Matter Capacity 350 Sight Range 16 Terrain Scan Range 16 Terrain Scan Density 10 Armor Coverage 525 Resistance: KI 10 Resistance: TH 15 Utility Shielding 33 Weapon Cycling 15 Evasion (%) 80 Targeting Accuracy 8 Recoil Reduction 2 Kinecelleration 40 Offensive Hacking 75 Defensive Hacking 52 Item Schematics ----------------- VTOL Module | -9/Materials | Extracted Signal Interpreter | -9/Materials | Extracted EM Shotgun | -9/Materials | Extracted Plasma Cutter | -9/Materials | Extracted Grenade Launcher | -9/Materials | Extracted Datajack | -9/Materials | Extracted Mace | -9/Materials | Extracted Welding Torch | -9/Materials | Extracted Imp. Flight Unit | -9/Materials | Extracted Disposable Heat Sink | -9/Materials | Extracted Lrg. Battery | -8/Materials | Extracted Com. Matter Pod | -8/Materials | Extracted Terrain Scan Processor | -8/Materials | Extracted Lgt. EM Pulse Cannon | -8/Materials | Extracted Nuclear Core | -8/Materials | Extracted Sml. Matter Pod | -8/Materials | Extracted System Shield | -8/Materials | Hacked Powered Armor | -7/Factory | Hacked Imp. Component Analysis Suite | -7/Factory | Hacked Imp. Thermal Generator | -7/Factory | Hacked Cld. VTOL Module | -7/Factory | Hacked Imp. Kinecellerator | -7/Factory | Hacked Imp. EM Pulse Cannon | -7/Factory | Hacked Combat Drone Bay | -7/Data Miner | Free Lgt. Regenerative Plating | -7/Data Miner | Free Cld. Aerolev Unit | -7/Data Miner | Free Thermal Defense Suite | -7/Data Miner | Free Antimatter Cannon | -7/Data Miner | Free Cmb. Gravmag System | -7/Data Miner | Free Imp. Shock Absorption System | -7/Data Miner | Free Disruptor Cannon | -7/Data Miner | Free Imp. Linear Gravjet | -7/Data Miner | Free Thermic Laser | -7/Data Miner | Free Imp. Force Field | -6/Factory | Hacked Imp. Powered Armor | -6/Factory | Hacked Biomechanical Wings | -6/Factory | Hacked Rocket Array | -6/Factory | Extracted Minigun | -6/Factory | Extracted Imp. Weapon Shielding | -6/Factory | Extracted Imp. Concussive RPG | -6/Factory | Extracted Machine Analyzer | -6/Factory | Extracted Lgt. Fission Core | -6/Factory | Extracted Phase Shifter | -6/Factory | Hacked Enh. Optical Array | -6/Factory | Hacked Hvy. Phase Cannon | -6/Hub_04(d) | Hacked Wave Gun | -6/Hub_04(d) | Hacked Imp. Hacking Suite | -6/Hub_04(d) | Hacked Adv. Power Amplifier | -6/Hub_04(d) | Hacked Assault Drone Bay | -5/Zhirov | Free Exp. Heat Sink | -5/Zhirov | Free Exp. Optical Array | -5/Zhirov | Free Imp. Arc Thrower | -5/Zhirov | Free Exp. Hacking Suite | -4/Factory | Hacked Linear Accelerator | -4/Factory | Hacked Exp. System Shield | -4/Factory | Hacked Hyp. Mass Driver | -4/Factory | Hacked Com. HERF Cannon | -4/Factory | Hacked Robot Schematics ------------------ W-25 Informer | -7/Data Miner | Free S-27 Virus | -7/Data Miner | Free B-48 Gladiator | -7/Data Miner | Free E-15 Imp | -7/Data Miner | Free H-66 Slayer | -7/Data Miner | Free M-14 Sweeper | -6/Factory | Hacked O-24 Administrator | -6/Factory | Hacked A-15 Conveyor | -6/Factory | Hacked K-01 Serf | -6/Hub_04(d) | Hacked Fabricated ------------ Imp. Powered Armor | x1 | -6/Factory Imp. Remote Datajack | x1 | -6/Factory | Preloaded Cld. VTOL Module | x1 | -6/Factory Powered Armor | x2 | -6/Factory Cld. VTOL Module | x1 | -6/Factory Cld. VTOL Module | x1 | -6/Factory Cld. VTOL Module | x1 | -6/Factory Cld. VTOL Module | x1 | -6/Factory Cld. VTOL Module | x1 | -6/Factory Exp. Hacking Suite | x1 | -4/Factory Exp. System Shield | x1 | -4/Factory Alien Tech Used ----------------- Integrated Dissipator Transdimensional Reconstructor Achievements -------------- None Challenges ------------ None RPGLIKE | -11 -10 -10 -9 -9 -9 -8 -8 -8 -8 -7 -7 -7 -7 -6 -6 -6 -6 -6 -6 -6 -6 -5 -5 -5 -5 -4 -4 -4 -4 -4 -3 -3 -2 -1 --------- Run | Yrd Mat Min Mat Min Exi Min Mat Gar Mat Fac Low Low Dat Pro Fac Was Fac Ext Cet Arc Hub Fac Upp Upp Zhi Pro Fac Upp Upp War Pro Res Res Acc Levels Raised 31 | . 3 1 5 1 . . 3 1 1 2 1 . . 1 1 . 1 1 . . . 1 . . . 1 1 . 1 . 1 . 2 2 XP Earned 49640 | 3000 5568 1521 7519 527 80 955 4182 1165 1433 3911 339 308 73 1017 2405 32 1285 756 324 117 592 854 233 231 105 705 2204 496 324 198 1131 782 3182 2086 XP Spent 49210 | 1600 3700 3200 7350 . . . 6650 1300 800 3650 1400 . . 910 1910 . 1100 2300 . . . 1430 . . . . 3100 . . . . 2970 2940 2900 Upgrades 69 | 4 7 4 13 . . . 8 2 1 6 1 . . 3 2 . 1 2 . . . 2 . . . . 2 . . . . 4 5 2 Propulsion Slot 5 | 1 1 1 . . . . 1 . . . . . . . 1 . . . . . . . . . . . . . . . . . . . Utility Slot 7 | 1 1 . 3 . . . 1 . . . . . . . . . . . . . . . . . . . 1 . . . . . . . Weapon Slot 4 | 1 1 . . . . . 1 . . . 1 . . . . . . . . . . . . . . . . . . . . . . . Heat Dissipation 13 | . . . 5 . . . . . . 1 . . . 2 1 . . . . . . 1 . . . . . . . . . 2 1 . Energy Generation 4 | . . . 1 . . . . . . . . . . 1 . . . . . . . . . . . . 1 . . . . 1 . . Matter Storage 1 | . . . . . . . 1 . . . . . . . . . . . . . . . . . . . . . . . . . . . Mass Support 3 | 1 . . . . . . 1 . . . . . . . . . . 1 . . . . . . . . . . . . . . . . Inventory Capacity 1 | . . . . . . . . . . 1 . . . . . . . . . . . . . . . . . . . . . . . . Ranged Accuracy 9 | . 2 3 1 . . . 1 . . . . . . . . . 1 1 . . . . . . . . . . . . . . . . Hack Attack % 9 | . 1 . 2 . . . . . 1 1 . . . . . . . . . . . 1 . . . . . . . . . 1 1 1 Hack Defense % 4 | . 1 . 1 . . . . . . 1 . . . . . . . . . . . . . . . . . . . . . . . 1 KI Resistance % 2 | . . . . . . . . . . . . . . . . . . . . . . . . . . . . . . . . . 2 . TH Resistance % 3 | . . . . . . . 1 . . 1 . . . . . . . . . . . . . . . . . . . . . . 1 . KI Damage % 4 | . . . . . . . 1 2 . 1 . . . . . . . . . . . . . . . . . . . . . . . . Protomatter Created 13910 | . 432 110 808 28 . 101 1178 427 1864 2013 206 143 . 426 1462 . 376 704 325 67 269 298 213 122 . 97 584 364 235 160 290 78 530 . Integrity Restored 13465 | . 750 322 830 96 . 38 1203 325 1420 1967 417 325 . 764 737 . 277 812 365 47 254 447 23 219 . 134 395 175 76 . 457 32 558 . Core 9534 | . 597 223 443 66 . 30 735 210 1147 1471 417 243 . 312 562 . 236 577 191 27 232 314 13 145 . 107 299 122 55 . 350 24 386 . Parts 3931 | . 153 99 387 30 . 8 468 115 273 496 . 82 . 452 175 . 41 235 174 20 22 133 10 74 . 27 96 53 21 . 107 8 172 . Protomatter Decayed 6483 | . 177 . 367 36 . 87 651 265 634 718 . . . 165 941 86 437 343 171 50 313 9 48 45 . 13 120 186 60 95 137 . 329 . Game ------ Seed ShieldHardcellBroadsword Manual? 0 Play Time 11:09:02 Cumulative 59.5 hours Start 2024.04.07 @ 22:33:14 End 2024.04.10 @ 18:10:50 Sessions 13 Manual Loads 0 Difficulty Rogue Special Mode Winter2019/RPGLIKE Game No. 25 Rogue 24 Adventurer 1 Explorer 0 Win Type 0 Total 1 Types 1/0/0/0/0/0/0/0/0 Lore% 44 Gallery% 33 Achievement% 21 Wizard Run 0 Options --------- Layout 0 ASCII 0 Keyboard 0 Movement Mouse Keybinds 0 Fullscreen 2 Font 18/Smallcaps Map View 76x50 Zoom Use 0% Tactical HUD 1 Map Filters NONE Filters NONE Steam 1 RUN: 786c0b69-6fe7-4e28-bcb6-c6c16498ae87